{"text_format":"1","workbook":"xlsx","n_sheets":1,"sheets":["Combined"],"not_rendered":{"charts":0,"images":0,"macros":1,"external_links":0,"defined_names":0,"comments":0,"pivot_tables":0},"unopened":[],"bounds":{"document_bytes":16777216,"sheet_cells":100000,"rows_first":2000,"rows_last":500,"rows_between":2000,"halvings":0,"cell_chars":16384,"cell_head_chars":4096},"cells_cut":0,"cells_raw":0,"read":"whole","date_system":"1900"}

{"sheet":"Combined","index":0,"n_rows":258,"n_cols":37,"rows_kept":258,"cut":false,"hidden":false,"merged":[[5,27,5,30],[5,32,5,36],[5,0,5,2],[5,3,5,6],[5,8,5,11],[5,13,5,16],[5,17,5,20],[5,22,5,25]]}
["2017 SSBC Conference Results"]
["Highlighted cells were chapters invited to the National Competition at Oregon State University"]
[]
[]
[null,null,null,null,null,null,null,null,1959,null,null,null,null,2247,null,null,null,2078,null,null,null,null,1732,null,null,null,null,1981,null,null,null,null,1770]
["Ineligibilities",null,null,"Construction Speed",null,null,null,null,"Lightness",null,null,null,null,"Display",null,null,null,"Stiffness",null,null,null,null,"Economy",null,null,null,null,"Efficiency",null,null,null,null,"Overall"]
["Chapter","Region","IE","Chapter","Region","Time","rRank","nRank","Chapter","Region","Weight","rRank","nRank","Chapter","Region","Score","rRank","Chapter","Region","Agg D","rRank","nRank","Chapter","Region","Cc ","rRank","nRank","Chapter","Region","Cs","rRank","nRank","Chapter","Region","Cc + Cs","rRank","nRank"]
["NMIMS","Caro","   10.3.14:","E'cole d Technologie Superieure","UpNY",5.2333333833333331,1,{"$f":"RANK(F8,F$8:F$130,-1)","v":1},"Calfornia Polytechnic University, San Luis Obispo","PacSW",91.000000110000002,1,{"$f":"RANK(K8,K$8:K$130,-1)","v":1},"North Carolina State University","Caro",1,1,"University of Hawaii, Manoa","PacSW",0.53000009999999997,1,{"$f":"RANK(T8,T$8:T$130,-1)","v":1},"E'cole d Technologie Superieure","UpNY",845000,1,{"$f":"RANK(Y8,Y$8:Y$130,-1)","v":1},"Calfornia Polytechnic University, San Luis Obispo","PacSW",1760000,1,{"$f":"RANK(AD8,AD$8:AD$130,-1)","v":1},"E'cole d Technologie Superieure","UpNY",2915000,1,{"$f":"RANK(AI8,AI$8:AI$130,-1)","v":1}]
["Louisiana Lafayette","DpSo","   10.8.2:","Lakehead University","mWest",5.2500000099999999,1,{"$f":"RANK(F9,F$8:F$130,-1)","v":2},"University of Alaska Fairbanks","PacNW",92.000000040000003,1,{"$f":"RANK(K9,K$8:K$130,-1)","v":2},"Louisiana Tech","DpSo",1,1,"Lafayette College","mAtl",0.57000001,1,{"$f":"RANK(T9,T$8:T$130,-1)","v":2},"Western Kentucky University","OhioV",1166666.6666999999,1,{"$f":"RANK(Y9,Y$8:Y$130,-1)","v":2},"UC Berkeley","mPac",1860000,1,{"$f":"RANK(AD9,AD$8:AD$130,-1)","v":2},"Calfornia Polytechnic University, San Luis Obispo","PacSW",3136666.6666999999,1,{"$f":"RANK(AI9,AI$8:AI$130,-1)","v":2}]
["New York University ","Metro","   10.8.2:","Milwaukee School of Engineering","GrtLks",5.8333333533333329,1,3,"University of Florida","SoEast",95.100000049999991,1,3,"University of Wisconsin Madison","GrtLks",1,1,"Missouri - Kansas City","mCont",0.63000001000000005,1,3,"Lakehead University","mWest",1342500,1,3,"University of Alaska Fairbanks","PacNW",1870000,1,3,"California State University, Northridge","PacSW",3523333.3333000001,2,3]
["University of Delaware","mAtl","   10.8.2:","Western Kentucky University","OhioV",5.8333334133333334,1,4,"North Dakota State University","mWest",98.800000060000016,1,4,"The College of New Jersey ","Metro",1,1,"Tongji University","mPac",0.73000001999999997,1,4,"Calfornia Polytechnic University, San Luis Obispo","PacSW",1376666.6666999999,1,4,"Lafayette College","mAtl",1914000,1,4,"University of Florida","SoEast",3856833.3333000001,1,4]
["University of Minnesota Twin Cities","mWest","   10.8.2:","Michigan State University","nCent",5.8833333633333336,1,5,"UC Berkeley","mPac",103.00000003,1,5,"Lafayette College","mAtl",1,1,"Kansas State","mCont",0.75000001999999999,2,5,"California State University, Northridge","PacSW",1443333.3333000001,2,5,"University of Florida","SoEast",1951000,1,5,"UC Berkeley","mPac",3886666.6666999999,1,5]
["University of Kentucky","OhioV","   10.8.2:","SUNY Canton","UpNY",6.4666667066666665,2,6,"E'cole d Technologie Superieure","UpNY",105.00000005,1,6,"Missouri - Kansas City","mCont",1,1,"Vanderbilt University","SoEast",0.75000001999999999,1,5,"Milwaukee School of Engineering","GrtLks",1518333.3333000001,1,6,"E'cole d Technologie Superieure","UpNY",2070000,1,6,"Lakehead University","mWest",3904500,1,6]
["BSU","PacNW","   10.8.2:","Calfornia Polytechnic University, San Luis Obispo","PacSW",6.8833334433333331,1,7,"California State University, Northridge","PacSW",112.00000000999999,2,7,"CSU, Chico","mPac",1,1,"Michigan Technological University","nCent",0.78000002000000002,1,7,"Youngstown State University","OhioV",1603333.3333000001,2,7,"Michigan Technological University","nCent",2075000,1,7,"University of Puerto Rico Mayaguez","SoEast",3972833.3333000001,2,7]
["CC","PacNW","   10.8.2:","North Dakota State University","mWest",6.9166667266666666,2,8,"Virginia Tech","Virg",127.00000005,1,8,"Lakehead University","mWest",1,1,"North Carolina State University","Caro",0.79000001000000009,1,8,"The Cooper Union ","Metro",1746666.6666999999,1,8,"California State University, Northridge","PacSW",2080000,2,8,"Youngstown State University","OhioV",4018333.3333000001,1,8]
["California Baptist University","PacSW","   10.8.2:","California State University, Northridge","PacSW",7.0666666766666664,2,9,"Lakehead University","mWest",127.20000000999998,2,9,"Universite Laval","NewEng",1,1,"University of Akron","OhioV",0.81000005000000008,1,9,"Michigan State University","nCent",1765000,1,9,"University of Puerto Rico Mayaguez","SoEast",2199500,2,9,"University of Alaska Fairbanks","PacNW",4213333.3333000001,1,9]
["University of Colorado - Boulder","RkyMtn","   10.8.2:","HoHai University","mPac",7.1666667166666667,1,10,"University of Wisconsin Madison","GrtLks",128.00000001000001,1,10,"University of Michigan","nCent",1,1,"Southern Illinois - Carbondale","mCont",0.81000006000000002,3,10,"University of Puerto Rico Mayaguez","SoEast",1773333.3333000001,1,10,"Calfornia Polytechnic University, Pomona","PacSW",2200000,3,10,"Milwaukee School of Engineering","GrtLks",4238333.3333000001,1,10]
["Southern Methodist University","TexMex","   10.8.2:","Michigan Technological University","nCent",7.2666666866666665,2,11,"Youngstown State University","OhioV",128.50000001000001,1,11,"Youngstown State University","OhioV",1,1,"George Mason University","Virg",0.83000001999999995,1,11,"University of Florida","SoEast",1905833.3333000001,2,11,"Tongji University","mPac",2230000,2,11,"Michigan Technological University","nCent",4255000,1,11]
["University of Houston","TexMex","   10.8.2:","University of Florida","SoEast",7.3833333833333326,1,12,"Michigan Technological University","nCent",129.50000001999999,1,12,"University of Alaska Anchorage","PacNW",1,1,"UC Berkeley","mPac",0.83000003,2,12,"University of Akron","OhioV",1922500,3,12,"Kennesaw State University","SoEast",2370000,3,12,"Tongji University","mPac",4330000,2,12]
["Syracuse University","UpNY","   10.8.2:","Youngstown State University","OhioV",7.7166666766666667,2,13,"Calfornia Polytechnic University, Pomona","PacSW",130.00000005999999,3,13,"California State University, Northridge","PacSW",1,1,"Calfornia Polytechnic University, San Luis Obispo","PacSW",0.85000010999999998,2,13,"SUNY Canton","UpNY",1970000,2,13,"Youngstown State University","OhioV",2415000,1,13,"Lafayette College","mAtl",4554000,1,13]
["The George Washington University","Virg","   10.8.2:","UC Berkeley","mPac",7.866666696666667,2,14,"South Dakota School of Mines","RkyMtn",130.00000005999999,1,13,"Colorado State University","RkyMtn",1,1,"University of Puerto Rico Mayaguez","SoEast",0.88000003000000004,2,14,"UC Berkeley","mPac",2026666.6666999999,1,14,"North Dakota State University","mWest",2438000,1,14,"SUNY Canton","UpNY",4590000,2,14]
["University of Virginia","Virg","   10.8.2:","Kennesaw State University","SoEast",7.933333413333334,2,15,"University of California, Los Angeles","PacSW",131.00000005000001,4,15,"University of Tennessee Knoxville","SoEast",1,1,"Southeast China","DpSo",0.88000003999999998,1,15,"Tongji University","mPac",2100000,2,15,"University of Wisconsin Madison","GrtLks",2480000,1,15,"University of Akron","OhioV",4606500,2,15]
["University of Hartford","NewEng","   11.1:","The Cooper Union ","Metro",8.4333333533333334,1,16,"University of Puerto Rico Mayaguez","SoEast",131.95000002999998,2,16,"Universidad Panamericana","TexMex",1,1,"University of Tennessee Martin","DpSo",0.88000005999999997,2,16,"NYC College of Technology","Metro",2137500,2,16,"The University of Texas at San Antonio","TexMex",2505000,1,16,"The Cooper Union ","Metro",4686666.6666999999,1,16]
["SUNY Polytechnic","UpNY","   11.1:","NYC College of Technology","Metro",8.5500000400000005,2,17,"Lafayette College","mAtl",134.40000000999999,1,17,"SUNY Canton","UpNY",4,1,"Kennesaw State University","SoEast",0.88000007999999996,3,17,"Michigan Technological University","nCent",2180000,2,17,"University of Michigan","nCent",2515000,2,17,"University of Wisconsin Madison","GrtLks",4793333.3333000001,2,17]
["University of South Carolina","Caro","   11.4:","University of Puerto Rico Mayaguez","SoEast",8.5666666966666671,3,18,"The University of Texas at San Antonio","TexMex",137.50000004,1,18,"Bluefield State College","Virg",1,1,"Calfornia Polytechnic University, Pomona","PacSW",0.90000005999999999,3,18,"University of British Columbia","PacNW",2200000,1,18,"Georgia Institute of Technology","Caro",2516000,1,18,"Kennesaw State University","SoEast",4900000,3,18]
["VIT","Caro","   11.4:","University of Michigan","nCent",8.8833333433333337,3,19,"University of Connecticut","NewEng",140.00000004,1,19,"Georgia Institute of Technology","Caro",2,2,"University of Alaska Anchorage","PacNW",0.94000001,1,19,"University of Wisconsin Madison","GrtLks",2313333.3333000001,2,19,"HoHai University","mPac",2530000,3,19,"HoHai University","mPac",5098333.3333000001,3,19]
["Mississippi State University","DpSo","   11.4:","University of Illinois Urbana-Champaign","GrtLks",9.6166667066666669,2,20,"Kennesaw State University","SoEast",149.00000008000001,3,20,"University of New Orleans","DpSo",2,2,"HoHai University","mPac",0.94000004999999998,3,20,"University of Alaska Fairbanks","PacNW",2343333.3333000001,2,20,"Lakehead University","mWest",2562000,2,20,"Calfornia Polytechnic University, Pomona","PacSW",5130000,3,20]
["Northwestern University","GrtLks","   11.4:","Tongji University","mPac",10.200000019999999,3,21,"Tongji University","mPac",150.00000001999999,2,21,"Milwaukee School of Engineering","GrtLks",2,2,"University of Louisville","OhioV",0.94000008999999995,2,21,"Kennesaw State University","SoEast",2380000,3,21,"SUNY Canton","UpNY",2620000,2,21,"North Dakota State University","mWest",5550500,2,21]
["University of Pittsburgh at Johnstown","mAtl","   11.4:","University of British Columbia","PacNW",10.70000003,1,22,"Georgia Institute of Technology","Caro",151.60000002000001,1,22,"The Cooper Union ","Metro",2,2,"University of Alaska Fairbanks","PacNW",0.95000003999999993,2,22,"HoHai University","mPac",2568333.3333000001,3,22,"South Dakota School of Mines","RkyMtn",2650000,1,22,"University of Connecticut","NewEng",5621666.6666999999,1,22]
["Saint Louis University","mCont","   11.4:","The College of New Jersey ","Metro",10.833333343333335,3,23,"Southwest Jiaotong University","SoEast",151.60000006999999,4,23,"University of Maryland - University Park","mAtl",2,2,"California State University, Northridge","PacSW",0.96000001000000001,4,23,"Lafayette College","mAtl",2640000,1,23,"University of Akron","OhioV",2684000,2,23,"University of Michigan","nCent",5774166.6666999999,2,23]
["CSU, Fresno","mPac","   11.4:","University of Dayton","OhioV",11.10000003,3,24,"University of Michigan","nCent",153.50000001000001,2,24,"Kansas State","mCont",2,2,"University of Michigan","nCent",0.98000001000000003,2,24,"The College of New Jersey ","Metro",2768333.3333000001,3,24,"University of Connecticut","NewEng",2700000,1,24,"Michigan State University","nCent",5975000,3,24]
["CSU, Sacramento ","mPac","   11.4:","Southwest Jiaotong University","SoEast",11.20000007,4,25,"University of Central Florida","SoEast",154.60000006000001,5,25,"Tongji University","mPac",2,2,"Georgia Institute of Technology","Caro",1.0000000200000001,2,25,"University of Dayton","OhioV",2835000,4,25,"Milwaukee School of Engineering","GrtLks",2720000,2,25,"University of British Columbia","PacNW",6430000,2,25]
["CSU, San Francisco","mPac","   11.4:","University of Wisconsin Madison","GrtLks",11.266666676666668,3,26,"Rochester Institiute of Technology","UpNY",156.00000005999999,2,26,"University of Manitoba","mWest",2,2,"MissourI S&T","mCont",1.00000004,4,26,"University of Connecticut","NewEng",2921666.6666999999,1,26,"Brigham Young University","RkyMtn",2855000,2,26,"The University of Texas at San Antonio","TexMex",6481666.6666999999,1,26]
["Dordt College","mWest","   11.4:","University of Connecticut","NewEng",11.566666706666666,1,27,"Milwaukee School of Engineering","GrtLks",158.00000001999999,2,27,"University of Massachusetts Amherst","NewEng",2,2,"University of Florida","SoEast",1.0000000499999999,4,27,"Calfornia Polytechnic University, Pomona","PacSW",2930000,3,27,"The Cooper Union ","Metro",2940000,1,27,"Southwest Jiaotong University","SoEast",6496000,4,27]
["University of Wisconsin Platteville","mWest","   11.4:","University of Alaska Fairbanks","PacNW",11.716666706666667,2,28,"University of Tennessee Knoxville","SoEast",158.30000001000002,6,28,"Michigan Technological University","nCent",2,2,"Ohio University","OhioV",1.0000000600000001,3,28,"University of Illinois Urbana-Champaign","GrtLks",2945000,3,28,"Arizona State University","PacSW",2970000,4,28,"Brigham Young University","RkyMtn",6731666.6666999999,1,28]
["Norwich University","NewEng","   11.4:","University of Akron","OhioV",12.416666716666667,4,29,"HoHai University","mPac",159.00000005000001,3,29,"The Ohio State University","OhioV",2,2,"The University of Texas at Austin","TexMex",1.0000000600000001,1,28,"Colorado State University","RkyMtn",2966666.6666999999,1,29,"Kansas State","mCont",3070000,1,29,"Western Kentucky University","OhioV",6883666.6666999999,3,29]
["Carnegie Mellon University","OhioV","   11.4:","New Mexico Tech","RkyMtn",12.466666716666667,1,30,"SUNY Canton","UpNY",161.00000004,3,30,"UI","PacNW",2,2,"SUNY Canton","UpNY",1.01000004,1,30,"Cleveland State University","OhioV",2993333.3333000001,5,30,"Southwest Jiaotong University","SoEast",3076000,4,30,"Colorado State University","RkyMtn",6901666.6666999999,2,30]
["University of Nevada, Las Vegas","PacSW","   11.4:","West Virginia University","Virg",12.833333363333335,1,31,"Brigham Young University","RkyMtn",166.50000004,2,31,"California State University, Long Beach","PacSW",2,2,"E'cole d Technologie Superieure","UpNY",1.0200000499999999,2,31,"Zhejiang University","mPac",3076666.6666999999,4,31,"North Carolina State University","Caro",3364000,2,31,"South Dakota School of Mines","RkyMtn",7005000,3,31]
["University of Southern California","PacSW","   11.4:","Missouri - Kansas City","mCont",13.716666676666668,1,32,"University of Maryland - University Park","mAtl",175.80000002,2,32,"Colorado School of Mines","RkyMtn",2,2,"Arizona State University","PacSW",1.02000007,5,32,"University of Michigan","nCent",3109166.6666999999,3,32,"University of Maryland - University Park","mAtl",3418000,2,32,"Zhejiang University","mPac",7186666.6666999999,4,32]
["Metropolitan State University, Denver","RkyMtn","   11.4:","Kansas State","mCont",14.050000020000001,2,33,"PSU","PacNW",182.00000008999999,2,33,"Vanderbilt University","SoEast",2,2,"Bradley University","GrtLks",1.0600000300000001,1,33,"North Dakota State University","mWest",3112500,2,33,"Virginia Tech","Virg",3450000,1,33,"Kansas State","mCont",7345000,1,33]
["New Mexico State University","RkyMtn","   11.4:","Universidad Autonoma Del Estado De Mexico (UAEM)","TexMex",14.083333353333334,1,34,"The Cooper Union ","Metro",186.00000001999999,1,34,"Universidad Autonoma Del Estado De Mexico (UAEM)","TexMex",2,2,"Texas Tech University","TexMex",1.06000005,2,34,"Purdue University Northwest","GrtLks",3210000,4,34,"Louisiana Tech","DpSo",3470000,1,34,"Missouri - Kansas City","mCont",7420039.6666999999,2,34]
["United States Air Force Academy","RkyMtn","   11.4:","Calfornia Polytechnic University, Pomona","PacSW",14.350000059999999,3,35,"University of Akron","OhioV",187.40000004999999,2,35,"E'cole d Technologie Superieure","UpNY",5,2,"The Cooper Union ","Metro",1.0800000200000002,1,35,"Universite Laval","NewEng",3377500,2,35,"Florida Gulf Coast University","SoEast",3490000,5,35,"The College of New Jersey ","Metro",7498333.3333000001,2,35]
["University of Utah","RkyMtn","   11.4:","Colorado State University","RkyMtn",14.533333343333334,2,36,"University of California, San Diego","PacSW",194.20000003999999,5,36,"George Mason University","Virg",2,2,"Rutgers University","Metro",1.08000005,2,36,"Southwest Jiaotong University","SoEast",3420000,4,36,"PSU","PacNW",3660000,2,36,"Oregon State University","PacNW",7530000,3,36]
["Florida International University","SoEast","   11.4:","Univeristy of Nevada, Reno","mPac",14.833333403333334,4,37,"Arizona State University","PacSW",195.00000007,6,37,"Christian Brothers University","DpSo",3,3,"Youngstown State University","OhioV",1.1300000099999998,4,37,"Missouri - Kansas City","mCont",3489166.6666999999,1,37,"Iowa State University","mWest",3714000,3,37,"University of Dayton","OhioV",7575000,4,37]
["Florida Stateuniversity-Florida A&M University","SoEast","   11.4:","Zhejiang University","mPac",15.233333373333332,5,38,"Colorado School of Mines","RkyMtn",200.00000001999999,3,38,"Bradley University","GrtLks",3,3,"The University of Texas at San Antonio","TexMex",1.1300000399999999,3,38,"MissourI S&T","mCont",3520000,2,38,"University of California, San Diego","PacSW",3742000,5,38,"University of California, Los Angeles","PacSW",7720000,4,38]
["Puerto Rico Polytechnique University","SoEast","   11.4:","The University of Texas at San Antonio","TexMex",15.666666706666666,2,39,"San Diego State University","PacSW",201.00000008000001,7,39,"Manhattan College ","Metro",3,3,"Milwaukee School of Engineering","GrtLks",1.14000002,2,39,"Oregon State University","PacNW",3530000,3,39,"Vanderbilt University","SoEast",3747000,6,39,"Universite Laval","NewEng",7759500,2,39]
["Tennessee Tech University","SoEast","   11.4:","Purdue University Northwest","GrtLks",15.75000006,4,40,"Louisiana Tech","DpSo",202.00000001000001,1,40,"Lehigh University","mAtl",3,3,"Rowan University ","Metro",1.17000006,3,40,"Brigham Young University","RkyMtn",3876666.6666999999,2,40,"University of Tennessee Knoxville","SoEast",3773000,7,40,"MissourI S&T","mCont",7941572,3,40]
["University of Alabama","SoEast","   11.4:","Iowa State University","mWest",16.416666706666664,3,41,"New Mexico Tech","RkyMtn",205.00000005000001,4,41,"Nebraska - Lincoln","mCont",3,3,"University of Massachusetts Amherst","NewEng",1.18000002,1,41,"University of California, Los Angeles","PacSW",3880000,4,41,"San Diego State University","PacSW",3780000,6,41,"Georgia Institute of Technology","Caro",8306000,1,41]
["University of South Alabama","SoEast","   11.4:","Universidad Panamericana","TexMex",16.600000010000002,3,42,"University of British Columbia","PacNW",207.00000003,3,42,"UC Berkeley","mPac",3,3,"Brigham Young University","RkyMtn",1.1900000399999999,1,42,"The University of Texas at San Antonio","TexMex",3976666.6666999999,1,42,"Missouri - Kansas City","mCont",3780873,2,42,"University of Illinois Urbana-Champaign","GrtLks",8545000,3,42]
["University of South Florida","SoEast","   11.4:","Lafayette College","mAtl",17.20000001,1,43,"Colorado State University","RkyMtn",217.50000001000001,5,43,"South Dakota State University","mWest",3,3,"Florida Gulf Coast University","SoEast",1.1900000899999998,5,43,"Kansas State","mCont",4275000,3,43,"Southeast China","DpSo",3822000,2,43,"Purdue University Northwest","GrtLks",8550000,4,43]
["Lamar University","TexMex","   11.4:","Illinois Institute of Technology","GrtLks",17.316666716666667,5,44,"CSU, San Jose","mPac",219.00000005999999,4,44,"University of Vermont","NewEng",3,3,"University of Wisconsin Madison","GrtLks",1.2000000099999999,3,44,"Illinois Institute of Technology","GrtLks",4329166.6666999999,5,44,"University of California, Los Angeles","PacSW",3840000,7,44,"UC Davis","mPac",8693333.3333000001,5,44]
["Texas A&M University","TexMex","   11.4:","MissourI S&T","mCont",17.600000040000001,3,45,"MSU","PacNW",226.00000008000001,4,45,"Michigan State University","nCent",3,3,"University of Vermont","NewEng",1.20000003,2,45,"South Dakota School of Mines","RkyMtn",4355000,3,45,"Oregon State University","PacNW",3850000,3,45,"Illinois Institute of Technology","GrtLks",8819166.6666999999,5,45]
["Texas A&M University-Kingsville","TexMex","   11.4:","Oregon State University","PacNW",17.650000049999999,3,46,"Florida Gulf Coast University","SoEast",230.00000008999999,7,46,"University of Dayton","OhioV",3,3,"UC Davis","mPac",1.2000000799999999,4,46,"Rochester Institiute of Technology","UpNY",4390000,3,46,"UC Davis","mPac",3860000,4,46,"North Carolina State University","Caro",8905666.6666999999,2,46]
["The University of Texas at El Paso","TexMex","   11.4:","Hudson Valley Community College","UpNY",18.483333433333335,3,47,"Kansas State","mCont",232.00000001999999,1,47,"University of British Columbia","PacNW",3,3,"Iowa State University","mWest",1.22000004,1,47,"New Mexico Tech","RkyMtn",4423333.3333000001,4,47,"Colorado State University","RkyMtn",3935000,3,47,"University of Tennessee Knoxville","SoEast",9053000,5,47]
["West Texas A&M University","TexMex","   11.4:","Northern Arizona University","PacSW",18.733333363333333,4,48,"Oregon State University","PacNW",232.00000005000001,5,48,"Northern Arizona University","PacSW",3,3,"Oklahoma","mCont",1.25000008,5,48,"West Virginia University","Virg",4551666.6666999999,1,48,"Texas Tech University","TexMex",3960000,2,48,"Universidad Autonoma Del Estado De Mexico (UAEM)","TexMex",9199166.6666999999,2,48]
["Rensselaer Polytechnic Institute","UpNY","   11.4:","University of New Orleans","DpSo",19.183333353333335,1,49,"Purdue University Northwest","GrtLks",232.00000005999999,3,49,"University of Colorado - Denver","RkyMtn",3,3,"University of Washington","PacNW",1.2500001000000001,3,49,"UC Davis","mPac",4833333.3333000001,5,49,"CSU, San Jose","mPac",3970000,5,49,"Rochester Institiute of Technology","UpNY",9350000,3,49]
["University of Buffalo","UpNY","   11.4:","Brigham Young University","RkyMtn",19.233333373333334,3,50,"University of Waterloo","UpNY",242.00000008000001,4,50,"University of North Florida","SoEast",3,3,"University of Illinois Urbana-Champaign","GrtLks",1.26000004,4,50,"Universidad Autonoma Del Estado De Mexico (UAEM)","TexMex",4959166.6666999999,2,50,"Southern Illinois - Carbondale","mCont",4100000,3,50,"Cleveland State University","OhioV",9521333.3333000001,5,50]
["University of the District of Columbia","Virg","   11.4:","The Ohio State University","OhioV",19.333333353333334,5,51,"Northern Arizona University","PacSW",243.00000003,8,51,"University of Puerto Rico Mayaguez","SoEast",3,3,"The College of New Jersey ","Metro",1.29000001,4,51,"Universidad Panamericana","TexMex",4980000,3,51,"Zhejiang University","mPac",4110000,6,51,"New Mexico Tech","RkyMtn",9673333.3333000001,4,51]
["Clemson","Caro","   11.5:","UC Davis","mPac",19.333333413333335,6,52,"Arkansas State","DpSo",246.20000005,2,52,"The University of Texas at Tyler","TexMex",3,3,"Lakehead University","mWest",1.29000001,2,51,"University of Tennessee Knoxville","SoEast",5280000,5,52,"University of Vermont","NewEng",4136000,2,52,"Florida Gulf Coast University","SoEast",9680000,6,52]
["Horry Georgetown Tech","Caro","   11.5:","University of California, Los Angeles","PacSW",19.400000049999999,5,53,"Univeristy of Nevada, Reno","mPac",248.00000007,5,53,"Rochester Institiute of Technology","UpNY",6,3,"Universite Laval","NewEng",1.29000001,3,51,"North Carolina State University","Caro",5541666.6666999999,1,53,"Michigan State University","nCent",4210000,3,53,"West Virginia University","Virg",10251666.6667,1,53]
["University of North Carolina at Charlotte","Caro","   11.5:","University of Manitoba","mWest",20.350000020000003,4,54,"Iowa State University","mWest",249.40000004000004,3,54,"West Virginia University","Virg",3,3,"University of Connecticut","NewEng",1.30000004,4,54,"Nebraska - Lincoln","mCont",5603333.3333000001,4,54,"University of British Columbia","PacNW",4230000,4,54,"Iowa State University","mWest",10340666.6667,3,54]
["Louisiana State University","DpSo","   11.5:","University of Arizona","PacSW",20.383333423333333,6,55,"Zhejiang University","mPac",253.00000004,6,55,"Southeast China","DpSo",4,4,"South Dakota School of Mines","RkyMtn",1.3500000600000002,2,55,"Hudson Valley Community College","UpNY",5605000,4,55,"Universidad Autonoma Del Estado De Mexico (UAEM)","TexMex",4240000,3,55,"Vanderbilt University","SoEast",10397000,7,55]
["University of Wisconsin Milwaukee","GrtLks","   11.5:","Florida Gulf Coast University","SoEast",20.433333423333334,5,56,"ISU","PacNW",254.00000005999999,6,56,"University of Illinois Urbana-Champaign","GrtLks",4,4,"California State University, Long Beach","PacSW",1.3600000200000002,6,56,"University of Waterloo","UpNY",5723333.3333000001,5,56,"Rutgers University","Metro",4310000,2,56,"PSU","PacNW",10748333.3333,4,56]
["New Jersey Institute of Technology ","Metro","   11.5:","Rochester Institiute of Technology","UpNY",21.65000006,4,57,"University of Dayton","OhioV",255.00000003,3,57,"NYC College of Technology","Metro",4,4,"Universidad Autonoma Del Estado De Mexico (UAEM)","TexMex",1.38000002,4,57,"Georgia Institute of Technology","Caro",5790000,2,57,"Universite Laval","NewEng",4382000,3,57,"University of Waterloo","UpNY",10883333.3333,4,57]
["Drexel University","mAtl","   11.5:","University of Vermont","NewEng",21.916666696666667,2,58,"CSU, Chico","mPac",257.00000001000001,7,58,"MissourI S&T","mCont",4,4,"Michigan State University","nCent",1.40000003,3,58,"OIT","PacNW",5825833.3333000001,4,58,"MissourI S&T","mCont",4421572,4,58,"NYC College of Technology","Metro",10977500,3,58]
["Pennsylvania State University - Harrisburg","mAtl","   11.5:","Universite Laval","NewEng",22.116666676666668,3,59,"North Carolina State University","Caro",257.40000000999999,2,59,"Zhejiang University","mPac",4,4,"Louisiana Tech","DpSo",1.4500000099999999,3,59,"The Ohio State University","OhioV",5860000,6,59,"ISU","PacNW",4480000,5,59,"Nebraska - Lincoln","mCont",11084905.3333,4,59]
["Arkansas","mCont","   11.5:","North Carolina State University","Caro",22.166666676666669,1,60,"West Virginia University","Virg",261.00000003000002,2,60,"Iowa State University","mWest",4,4,"South Dakota State University","mWest",1.45000003,3,60,"University of Alaska Anchorage","PacNW",6168333.3333000001,5,60,"Illinois Institute of Technology","GrtLks",4490000,3,60,"Virginia Tech","Virg",11145000,2,60]
["Missouri State","mCont","   11.5:","OIT","PacNW",23.183333403333332,4,61,"UC Davis","mPac",266.00000008000001,8,61,"University of Connecticut","NewEng",4,4,"North Dakota State University","mWest",1.45000006,4,61,"Florida Gulf Coast University","SoEast",6190000,6,61,"The College of New Jersey ","Metro",4730000,3,61,"The Ohio State University","OhioV",11247653.279999999,6,61]
["University of North Dakota","mWest","   11.5:","Lehigh University","mAtl",23.450000029999998,2,62,"Michigan State University","nCent",281.00000003000002,3,62,"Ohio Northern University","nCent",4,4,"OIT","PacNW",1.50000007,4,62,"Colorado School of Mines","RkyMtn",6436666.6666999999,5,62,"University of Dayton","OhioV",4740000,3,62,"Universidad Panamericana","TexMex",11310000,3,62]
["Central Connecticut State University","NewEng","   11.5:","University of New Brunswick","NewEng",23.716666716666669,4,63,"Universidad Autonoma Del Estado De Mexico (UAEM)","TexMex",286.00000002000002,2,63,"Cleveland State University","OhioV",4,4,"Oregon State University","PacNW",1.5300000499999999,5,63,"Iowa State University","mWest",6626666.6666999999,3,63,"University of Massachusetts Amherst","NewEng",4870000,4,63,"University of Vermont","NewEng",11806833.3333,3,63]
["Merrimack College","NewEng","   11.5:","University of Massachusetts Amherst","NewEng",23.883333353333335,5,64,"Lehigh University","mAtl",286.60000003000005,3,64,"University of Alaska Fairbanks","PacNW",4,4,"University of New Brunswick","NewEng",1.54000005,5,64,"Vanderbilt University","SoEast",6650000,7,64,"Rochester Institiute of Technology","UpNY",4960000,3,64,"California State University, Long Beach","PacSW",11920000,5,64]
["University of New Hampshire","NewEng","   11.5:","University of Cincinnati","OhioV",23.883333403333332,6,65,"Illinois Institute of Technology","GrtLks",288.00000004999998,4,65,"University of California, San Diego","PacSW",4,4,"Southwest Jiaotong University","SoEast",1.5600000700000001,6,65,"California State University, Long Beach","PacSW",6700000,5,65,"Trine University","GrtLks",5070000,4,65,"University of Alaska Anchorage","PacNW",12058333.3333,5,65]
["University of Rhode Island","NewEng","   11.5:","University of Alaska Anchorage","PacNW",24.433333343333334,5,{"$f":"RANK(F73,F$8:F$130,-1)","v":66},"Texas Tech University","TexMex",290.00000004999998,3,{"$f":"RANK(K73,K$8:K$130,-1)","v":66},"Brigham Young University","RkyMtn",4,4,"Zhejiang University","mPac",1.5800000400000001,5,{"$f":"RANK(T73,T$8:T$130,-1)","v":66},"University of Toledo","nCent",6880833.3333000001,4,{"$f":"RANK(Y73,Y$8:Y$130,-1)","v":66},"University of Waterloo","UpNY",5160000,4,{"$f":"RANK(AD73,AD$8:AD$130,-1)","v":66},"University of Massachusetts Amherst","NewEng",12065000,4,{"$f":"RANK(AI73,AI$8:AI$130,-1)","v":66}]
["Wentworth Institute of Technology","NewEng","   11.5:","Virginia Tech","Virg",25.45000005,2,67,"University of Vermont","NewEng",293.60000003000005,2,67,"The University of Texas at San Antonio","TexMex",4,4,"Marquette Univiersity","GrtLks",1.5900000700000001,5,67,"CSU, Chico","mPac",7026666.6666999999,6,67,"Purdue University Northwest","GrtLks",5190000,5,67,"Rutgers University","Metro",12160000,4,67]
["Wayne State University","nCent","   11.5:","University of North Florida","SoEast",25.483333363333333,6,68,"Southeast China","DpSo",294.20000003999996,3,68,"University of Waterloo","UpNY",8,4,"Illinois Institute of Technology","GrtLks",1.61000005,6,68,"PSU","PacNW",7088333.3333000001,6,68,"University of New Brunswick","NewEng",5206000,5,68,"CSU, Chico","mPac",12456666.6667,6,68]
["University of Pittsburgh","OhioV","   11.5:","Rutgers University","Metro",26.166666716666668,4,69,"Vanderbilt University","SoEast",299.70000002,8,69,"Marshall University","Virg",4,4,"University of Maryland - University Park","mAtl",1.66000002,2,69,"University of Manitoba","mWest",7182500,4,69,"California State University, Long Beach","PacSW",5220000,8,69,"Colorado School of Mines","RkyMtn",12786666.6667,5,69]
["SMC","PacNW","   11.5:","Christian Brothers University","DpSo",26.200000029999998,2,70,"Missouri - Kansas City","mCont",309.00000001000001,2,70,"Arkansas State","DpSo",5,5,"Manhattan College ","Metro",1.69000003,5,70,"University of Massachusetts Amherst","NewEng",7195000,3,70,"New Mexico Tech","RkyMtn",5250000,4,70,"University of Maryland - University Park","mAtl",12813000,2,70]
["WSU","PacNW","   11.5:","University of Tennessee Knoxville","SoEast",26.400000009999999,7,71,"Universite Laval","NewEng",309.20000001,3,71,"Illinois Institute of Technology","GrtLks",5,5,"University of Cincinnati","OhioV",1.69000007,5,71,"University of Cincinnati","OhioV",7225000,7,71,"The Ohio State University","OhioV",5387653.2800000003,4,71,"Hudson Valley Community College","UpNY",12945000,5,71]
["California State University, Fullerton","PacSW","   11.5:","Louisiana Tech","DpSo",27.266666676666667,3,72,"University of New Orleans","DpSo",310.40000001999999,4,72,"Rutgers University","Metro",5,5,"University of Manitoba","mWest",1.7500000200000001,5,72,"University of Vermont","NewEng",7670833.3333000001,4,72,"Minnesota State University Mankato","mWest",5388113,4,72,"Texas Tech University","TexMex",12960000,4,72]
["University of California, Irvine","PacSW","   11.5:","University of Toledo","nCent",27.283333383333336,4,73,"Trine University","GrtLks",316.00000009000001,5,73,"Oklahoma State","mCont",5,5,"Colorado State University","RkyMtn",1.7600000099999999,3,73,"Virginia Tech","Virg",7695000,2,73,"CSU, Chico","mPac",5430000,7,73,"University of New Brunswick","NewEng",13566833.3333,5,73]
["University of New Mexico","RkyMtn","   11.5:","Nebraska - Lincoln","mCont",27.716666696666664,4,74,"Minnesota State University Mankato","mWest",319.00000004999998,4,74,"HoHai University","mPac",5,5,"San Diego State University","PacSW",1.77000008,7,74,"Northern Arizona University","PacSW",7746666.6666999999,6,74,"Arkansas State","DpSo",5442000,3,74,"OIT","PacNW",14085833.3333,6,74]
["University of Wyoming","RkyMtn","   11.5:","Marshall University","Virg",27.783333373333335,3,75,"The Ohio State University","OhioV",320.40000001999999,4,75,"Minnesota State University Mankato","mWest",5,5,"CSU, San Jose","mPac",1.7800000600000001,6,75,"Rutgers University","Metro",7850000,4,75,"Nebraska - Lincoln","mCont",5481572,5,75,"University of California, San Diego","PacSW",15212833.3333,6,75]
["Utah State University","RkyMtn","   11.5:","CSU, Chico","mPac",27.866666676666668,7,76,"Nebraska - Lincoln","mCont",322.00000003000002,3,76,"University of New Brunswick","NewEng",5,5,"University of California, San Diego","PacSW",1.80000004,8,76,"University of Arizona","PacSW",8153333.3333000001,7,76,"University of Illinois Urbana-Champaign","GrtLks",5600000,6,76,"University of Illinois Chicago","GrtLks",15725000,6,76]
["Auburn University","SoEast","   11.5:","PSU","PacNW",28.233333423333335,6,77,"MissourI S&T","mCont",322.00000003999997,4,77,"University of Toledo","nCent",5,5,"PSU","PacNW",1.84000009,6,77,"University of New Brunswick","NewEng",8360833.3333000001,5,77,"West Virginia University","Virg",5700000,2,77,"Oklahoma","mCont",15865000,5,77]
["Georgia Southern University","SoEast","   11.5:","ISU","PacNW",28.250000060000001,7,78,"Rutgers University","Metro",323.00000004999998,2,78,"University of Akron","OhioV",5,5,"Ohio Northern University","nCent",1.9100000399999999,4,78,"Univeristy of Nevada, Reno","mPac",8450000,7,78,"Western Kentucky University","OhioV",5717000,5,78,"University of Arizona","PacSW",15903333.3333,7,78]
["University of Alabama at Huntsville","SoEast","   11.5:","University of Waterloo","UpNY",28.316666746666666,5,79,"Southern Illinois - Carbondale","mCont",329.00000005999999,5,79,"Oregon State University","PacNW",5,5,"Trine University","GrtLks",1.9100000899999998,7,79,"University of Washington","PacNW",8883333.3333000001,7,79,"University of Central Florida","SoEast",5736000,8,79,"ISU","PacNW",15930000,7,79]
["Universidad La Salle A.C.","TexMex","   11.5:","University of Louisville","OhioV",28.616666756666667,7,80,"The College of New Jersey ","Metro",344.00000001000001,3,80,"University of California, Los Angeles","PacSW",5,5,"ISU","PacNW",1.94000006,7,80,"University of Illinois Chicago","GrtLks",8985000,6,80,"University of Alaska Anchorage","PacNW",5740000,6,80,"University of Louisville","OhioV",16854737.653299998,7,80]
["Universidad Nacional Autonoma de Mexico (UNAM)","TexMex","   11.5:","Georgia Institute of Technology","Caro",28.65000002,2,81,"University of Illinois Chicago","GrtLks",364.00000010000002,6,81,"New Mexico Tech","RkyMtn",5,5,"USMA Westpoint","UpNY",1.9900000899999999,3,81,"Texas Tech University","TexMex",9000000,4,81,"MSU","PacNW",5840000,7,81,"George Mason University","Virg",17109272,3,81]
["Cornell University","UpNY","   11.5:","South Dakota School of Mines","RkyMtn",28.833333393333334,4,82,"Western Kentucky University","OhioV",365.70000008,5,82,"University of Florida","SoEast",5,5,"The Ohio State University","OhioV",2.0000000199999999,6,82,"University of Maryland - University Park","mAtl",9395000,2,82,"Oklahoma","mCont",5960000,6,82,"CSU, San Jose","mPac",17417500,7,82]
["The Catholic University of America","Virg","   11.5:","Cleveland State University","OhioV",29.333333373333332,8,83,"University of New Brunswick","NewEng",366.60000005000001,4,83,"Texas Tech University","TexMex",5,5,"Minnesota State University Mankato","mWest",2.0300000499999999,6,83,"South Dakota State University","mWest",9655000,5,83,"The University of Texas at Tyler","TexMex",6005000,4,83,"University of North Florida","SoEast",17431333.333299998,8,83]
["Virginia Military Institute","Virg","   11.5:","George Mason University","Virg",29.550000020000002,4,84,"University of Arizona","PacSW",367.00000009000001,9,84,"USMA Westpoint","UpNY",9,5,"Lawrence Technological University","nCent",2.0300000599999999,5,84,"University of New Orleans","DpSo",9755000,1,84,"Colorado School of Mines","RkyMtn",6200000,5,84,"University of Washington","PacNW",18784085.333299998,8,84]
["Valparaiso University","GrtLks","   11.6:","CSU, San Jose","mPac",29.750000060000001,8,85,"University of Massachusetts Amherst","NewEng",369.00000002000002,5,85,"Virginia Tech","Virg",5,5,"Nebraska - Lincoln","mCont",2.0600000299999999,6,85,"Marshall University","Virg",9784166.6666999999,3,85,"Universidad Panamericana","TexMex",6330000,5,85,"Trine University","GrtLks",19000000,7,85]
["Northeastern University","NewEng","   11.6:","University of Illinois Chicago","GrtLks",29.750000100000001,6,86,"The University of Texas at Tyler","TexMex",375.50000003000002,4,86,"University of Tennessee Martin","DpSo",6,6,"Western Kentucky University","OhioV",2.06000008,7,86,"Oklahoma","mCont",9905000,5,86,"Cleveland State University","OhioV",6528000,6,86,"University of Colorado - Denver","RkyMtn",19425000,6,86]
["University of Massachusetts Lowell","NewEng","   11.6:","Texas Tech University","TexMex",30.000000050000001,4,87,"Purdue University Lafayette","GrtLks",379.00000008000001,7,87,"Purdue University Northwest","GrtLks",6,6,"Oklahoma State","mCont",2.13000005,7,87,"University of Louisville","OhioV",10075833.3333,8,87,"University of Louisville","OhioV",6628904.3200000003,7,87,"Purdue University Lafayette","GrtLks",20180000,8,87]
["E'cole Polytechnique Montreal","UpNY","   11.6:","University of Colorado - Denver","RkyMtn",30.150000029999998,5,88,"California State University, Long Beach","PacSW",386.00000002000002,10,88,"Rowan University ","Metro",6,6,"University of British Columbia","PacNW",2.16000003,8,88,"Ohio Northern University","nCent",10170833.3333,5,88,"George Mason University","Virg",6706772,3,88,"USMA Westpoint","UpNY",20970000,6,88]
["University of Mississippi","DpSo","   4:","University of Maryland - University Park","mAtl",31.116666686666669,3,89,"Universidad Panamericana","TexMex",395.00000001000001,5,89,"Southern Illinois - Carbondale","mCont",6,6,"Christian Brothers University","DpSo",2.18000003,4,89,"University of North Florida","SoEast",10253333.3333,8,89,"University of Illinois Chicago","GrtLks",6740000,7,89,"Arizona State University","PacSW",22480000,8,89]
["Indiana State University","GrtLks","   4:","South Dakota State University","mWest",31.983333363333333,5,90,"Cleveland State University","OhioV",396.80000003999999,6,90,"CSU, San Jose","mPac",6,6,"Virginia Tech","Virg",2.1800000500000003,2,90,"George Mason University","Virg",10402500,4,90,"University of Tennessee Martin","DpSo",6740072.6799999997,4,90,"Louisiana Tech","DpSo",22706666.666700002,1,90]
["Rose-Hulman Institute of Technology","GrtLks","   4:","Colorado School of Mines","RkyMtn",32.183333353333339,6,91,"Hudson Valley Community College","UpNY",400.00000010000002,5,91,"North Dakota State University","mWest",6,6,"University of Tennessee Knoxville","SoEast",2.1900000099999999,7,91,"USMA Westpoint","UpNY",10590000,6,91,"Oklahoma State","mCont",6910000,7,91,"South Dakota State University","mWest",22779972.32,4,91]
["University of Evansville","GrtLks","   4:","UI","PacNW",32.40000002,8,92,"University of Louisville","OhioV",415.20000009000006,7,92,"Lawrence Technological University","nCent",6,6,"University of Dayton","OhioV",2.1900000299999998,8,92,"Lehigh University","mAtl",11065000,3,92,"Purdue University Lafayette","GrtLks",7090000,8,92,"Oklahoma State","mCont",23853333.333299998,6,92]
["Fairleigh Dickinson University ","Metro","   4:","Marquette Univiersity","GrtLks",32.516666736666664,7,93,"University of North Florida","SoEast",417.80000003000004,9,93,"Ohio University","OhioV",6,6,"The University of Texas at Tyler","TexMex",2.2500000299999998,5,93,"ISU","PacNW",11300000,8,93,"University of North Florida","SoEast",7178000,9,93,"University of Cincinnati","OhioV",24306253.280000001,8,93]
["Morgan State University","mAtl","   4:","Oklahoma","mCont",33.016666746666665,5,94,"University of Tennessee Martin","DpSo",421.40000006000002,5,94,"ISU","PacNW",6,6,"University of Colorado - Denver","RkyMtn",2.3500000299999999,4,94,"University of California, San Diego","PacSW",11470833.3333,8,94,"University of Colorado - Denver","RkyMtn",7305000,6,94,"UI","PacNW",24469188,9,94]
["University of Minnesota Duluth","mWest","   4:","Vanderbilt University","SoEast",33.100000020000003,8,95,"George Mason University","Virg",422.00000002000002,3,95,"Calfornia Polytechnic University, Pomona","PacSW",6,6,"Universidad Panamericana","TexMex",2.3800000099999998,6,95,"University of Colorado - Denver","RkyMtn",12120000,6,95,"Hudson Valley Community College","UpNY",7340000,5,95,"Northern Arizona University","PacSW",24586666.666700002,9,95]
["Roger Williams University","NewEng","   4:","California State University, Long Beach","PacSW",33.200000020000004,7,96,"University of Illinois Urbana-Champaign","GrtLks",434.00000003999997,8,96,"South Dakota School of Mines","RkyMtn",6,6,"University of California, Los Angeles","PacSW",2.5300000499999999,9,96,"Purdue University Lafayette","GrtLks",12940000,7,96,"Ohio University","OhioV",7441178.9199999999,8,96,"Univeristy of Nevada, Reno","mPac",25310000,8,96]
["University of Massachusetts Dartmouth","NewEng","   4:","Oklahoma State","mCont",33.766666716666663,6,97,"Bluefield State College","Virg",438.00000001000001,4,97,"University of Central Florida","SoEast",6,6,"Cleveland State University","OhioV",2.5600000400000003,9,97,"UI","PacNW",13020000,9,97,"University of Arizona","PacSW",7750000,9,97,"Marshall University","Virg",26747983.666700002,4,97]
["University of New Haven","NewEng","   4:","Trine University","GrtLks",34.450000090000003,8,98,"Ohio University","OhioV",441.80000006,8,98,"The University of Texas at Austin","TexMex",6,6,"University of Waterloo","UpNY",2.7400000800000002,4,98,"CSU, San Jose","mPac",13447500,8,98,"OIT","PacNW",8260000,8,98,"University of New Orleans","DpSo",28444489.280000001,2,98]
["Western New England University","NewEng","   4:","USMA Westpoint","UpNY",35.100000090000002,6,99,"Oklahoma","mCont",471.00000008000001,6,99,"Hudson Valley Community College","UpNY",10,6,"University of Toledo","nCent",2.7600000499999999,6,99,"Trine University","GrtLks",13780000,8,99,"NYC College of Technology","Metro",8840000,4,99,"Lehigh University","mAtl",28711000,3,99]
["Worcester Polytechnical Institute","NewEng","   4:","Arizona State University","PacSW",35.200000070000002,8,100,"Oklahoma State","mCont",478.00000004999998,7,100,"Marquette Univiersity","GrtLks",7,7,"CSU, Chico","mPac",2.8600000099999998,7,100,"Marquette Univiersity","GrtLks",14692500,9,100,"Rowan University ","Metro",9000000,5,100,"Christian Brothers University","DpSo",31030328.25,3,100]
["Western Michigan University","nCent","   4:","Bradley University","GrtLks",36.68333336333334,9,101,"University of Alaska Anchorage","PacNW",480.00000001000001,7,101,"Southern Illinois - Edwardsville","mCont",7,7,"Purdue University Northwest","GrtLks",2.8700000600000002,8,101,"Oklahoma State","mCont",16943333.333299998,6,101,"University of Hawaii, Manoa","PacSW",9136000,10,101,"The University of Texas at Tyler","TexMex",31530000,5,101]
["Cincinnati State University","OhioV","   4:","Ohio Northern University","nCent",40.68333337333334,5,102,"University of Colorado - Denver","RkyMtn",495.50000003000002,6,102,"Univeristy of Nevada, Reno","mPac",7,7,"Arkansas State","DpSo",2.9800000500000001,5,102,"Christian Brothers University","DpSo",18370000,2,102,"California State University, Los Angeles","PacSW",9420000,11,102,"Marquette Univiersity","GrtLks",33397437,9,102]
["Loyola Marymount University","PacSW","   4:","Purdue University Lafayette","GrtLks",43.133333413333332,10,103,"UI","PacNW",506.00000002000002,8,103,"University of Cincinnati","OhioV",7,7,"UI","PacNW",3.0000000199999999,9,103,"Louisiana Tech","DpSo",19086666.666700002,3,103,"University of Washington","PacNW",9900752,9,103,"Southeast China","DpSo",34085333.333300002,4,103]
["Alabama A&M","SoEast","   4:","University of Washington","PacNW",44.116666766666668,9,104,"University of Washington","PacNW",512.00000009999997,9,104,"OIT","PacNW",7,7,"University of North Florida","SoEast",3.0000000299999998,8,104,"Arizona State University","PacSW",19360000,9,104,"USMA Westpoint","UpNY",10380000,6,104,"University of Central Florida","SoEast",41112666.666699998,9,104]
["Emby-Riddle University","SoEast","   4:","University of California, San Diego","PacSW",45.883333373333336,9,105,"Christian Brothers University","DpSo",559.50000002999991,6,105,"Arizona State University","PacSW",7,7,"NYC College of Technology","Metro",3.0000000400000002,6,105,"Southern Illinois - Edwardsville","mCont",21156666.666700002,7,105,"UI","PacNW",11449188,10,105,"University of Toledo","nCent",41220833.333300002,4,105]
["Lipscomb University","SoEast","   4:","Southeast China","DpSo",46.466666706666672,4,106,"NYC College of Technology","Metro",584.00000004000003,4,106,"Southwest Jiaotong University","SoEast",7,7,"West Virginia University","Virg",3.0900000299999997,3,106,"Bradley University","GrtLks",23904166.666700002,10,106,"Christian Brothers University","DpSo",12510328.25,5,106,"Southern Illinois - Carbondale","mCont",42760000,7,106]
["Savannah State University","SoEast","   4:","Southern Illinois - Edwardsville","mCont",48.933333403333336,7,107,"South Dakota State University","mWest",594.80000002999998,5,107,"Purdue University Lafayette","GrtLks",8,8,"University of Illinois Chicago","GrtLks",3.1000000999999999,9,107,"The University of Texas at Tyler","TexMex",25525000,5,107,"South Dakota State University","mWest",13124972.32,5,107,"Bradley University","GrtLks",43132778.666699998,10,107]
["Tennessee State Univeristy","SoEast","   4:","The University of Texas at Tyler","TexMex",84.883333363333321,5,108,"California State University, Los Angeles","PacSW",601.00000011999998,11,108,"Oklahoma","mCont",8,8,"New Mexico Tech","RkyMtn",3.2000000500000003,5,108,"Southeast China","DpSo",30263333.333299998,4,108,"Northern Arizona University","PacSW",16840000,12,108,"Southern Illinois - Edwardsville","mCont",47606618.666699998,8,108]
["Univeristy of Tennesee Chattanooga","SoEast","   4:","University of Central Florida","SoEast",88.366666726666679,9,109,"Southern Illinois - Edwardsville","mCont",612.00000007000006,8,109,"UC Davis","mPac",8,8,"Purdue University Lafayette","GrtLks",3.3000000799999998,10,109,"University of Central Florida","SoEast",35376666.666699998,9,109,"Univeristy of Nevada, Reno","mPac",16860000,8,109,"MSU","PacNW",52490000,10,109]
["University of Miami","SoEast","   4:","Bluefield State College","Virg",181.00000001000001,5,110,"Marshall University","Virg",643.00000004000003,5,110,"Western Kentucky University","OhioV",8,8,"Marshall University","Virg",3.32000004,4,110,"Southern Illinois - Carbondale","mCont",38660000,8,110,"University of Cincinnati","OhioV",16931253.280000001,9,110,"University of Manitoba","mWest",52590181.32,5,110]
["The University of Texas Rio Grande Valley","TexMex","   4:","Arkansas State","DpSo",181.25000005000001,5,111,"OIT","PacNW",676.00000007000006,10,111,"MSU","PacNW",8,8,"Hudson Valley Community College","UpNY",3.3400000999999997,5,111,"MSU","PacNW",46500000,10,111,"Marshall University","Virg",16963817,4,111,"Rowan University ","Metro",64650000,5,111]
["West Virginia University Institute of Technology","Virg","   4:","Ohio University","OhioV",183.00000005999999,9,112,"University of Cincinnati","OhioV",679.60000007000008,9,112,"San Diego State University","PacSW",8,8,"Rochester Institiute of Technology","UpNY",3.40000006,6,112,"University of Hawaii, Manoa","PacSW",55635000,10,112,"Manhattan College ","Metro",17219668,6,112,"University of Hawaii, Manoa","PacSW",64771000,10,112]
["University of Southern Indiana","GrtLks","   5:","California State University, Los Angeles","PacSW",183.00000012000001,10,113,"Manhattan College ","Metro",686.00000003000002,5,113,"Kennesaw State University","SoEast",8,8,"California State University, Los Angeles","PacSW",3.4100001200000003,10,113,"Rowan University ","Metro",55650000,5,113,"Lehigh University","mAtl",17646000,3,113,"Ohio Northern University","nCent",69492946.333299994,5,113]
["Old Dominion University","Virg","   9.2.2:","Minnesota State University Mankato","mWest",183.50000005000001,6,114,"Lawrence Technological University","nCent",691.50000006000005,4,114,"Trine University","GrtLks",9,9,"MSU","PacNW",3.58000008,10,114,"Manhattan College ","Metro",55785000,6,114,"Lawrence Technological University","nCent",17809684.25,4,114,"Manhattan College ","Metro",73154668,6,114]
["The Citadel","Caro","   9.3:","University of Hawaii, Manoa","PacSW",185.25000009999999,11,115,"Marquette Univiersity","GrtLks",717.00000007000006,9,115,"University of Louisville","OhioV",9,9,"Southern Illinois - Edwardsville","mCont",3.94000007,8,115,"Lawrence Technological University","nCent",61755000,6,115,"Marquette Univiersity","GrtLks",18554937,9,115,"Lawrence Technological University","nCent",79564684.25,6,115]
["Indiana University - Purdue University Fort Wayne","GrtLks","   9.3:","Rowan University ","Metro",185.50000005999999,5,116,"Bradley University","GrtLks",742.00000003000002,10,116,"PSU","PacNW",9,9,"University of Arizona","PacSW",4.0800000900000004,11,116,"Ohio University","OhioV",73200000,9,116,"University of New Orleans","DpSo",18689489.280000001,6,116,"Ohio University","OhioV",80641178.920000002,9,116]
["University of Notre Dame","GrtLks","   9.3:","Manhattan College ","Metro",185.75000003,6,117,"Rowan University ","Metro",783.00000006000005,6,117,"University of Arizona","PacSW",9,9,"University of Central Florida","SoEast",4.19000006,9,117,"Arkansas State","DpSo",81562500,5,117,"Bradley University","GrtLks",19228612,10,117,"Arkansas State","DpSo",87004500,5,117]
["Columbia University ","Metro","   9.3:","MSU","PacNW",186.00000008000001,10,118,"The University of Texas at Austin","TexMex",824.00000006000005,6,118,"Florida Gulf Coast University","SoEast",9,9,"Colorado School of Mines","RkyMtn",4.2000000200000001,6,118,"San Diego State University","PacSW",95875000,11,118,"Bluefield State College","Virg",19770000,5,118,"San Diego State University","PacSW",99655000,11,118]
["Missouri - Columbia","mCont","   9.3:","University of Tennessee Martin","DpSo",191.75000005999999,6,119,"USMA Westpoint","UpNY",839.00000008999996,6,119,"University of Illinois Chicago","GrtLks",10,10,"Univeristy of Nevada, Reno","mPac",4.3800000699999995,8,119,"University of Tennessee Martin","DpSo",124697500,6,119,"The University of Texas at Austin","TexMex",23406208,6,119,"University of Tennessee Martin","DpSo",131437572.68000001,6,119]
["University of Iowa","mWest","   9.3:","San Diego State University","PacSW",191.75000008000001,12,120,"University of Hawaii, Manoa","PacSW",860.60000009999999,12,120,"University of Washington","PacNW",10,10,"Northern Arizona University","PacSW",4.41000003,12,120,"California State University, Los Angeles","PacSW",128100000,12,120,"Southern Illinois - Edwardsville","mCont",26299952,8,120,"Minnesota State University Mankato","mWest",133838113,6,120]
["University of Maine","NewEng","   9.3:","Southern Illinois - Carbondale","mCont",193.00000005999999,8,121,"University of Manitoba","mWest",1150.2000000200001,6,121,"University of Hawaii, Manoa","PacSW",10,10,"Lehigh University","mAtl",4.7800000300000001,3,121,"Minnesota State University Mankato","mWest",128450000,6,121,"University of Toledo","nCent",34340000,5,121,"California State University, Los Angeles","PacSW",137520000,12,121]
["Florida Institute of Technology","SoEast","   9.3:","The University of Texas at Austin","TexMex",196.25000005999999,6,122,"Ohio Northern University","nCent",1319.00000004,5,122,"Calfornia Polytechnic University, San Luis Obispo","PacSW",11,11,"Bluefield State College","Virg",5.3900000099999996,5,122,"Bluefield State College","Virg",157850000,5,122,"University of Manitoba","mWest",45407681.32,6,122,"Bluefield State College","Virg",177620000,5,122]
["Howard University","Virg","   9.3:","Lawrence Technological University","nCent",205.75000005999999,6,123,"University of Toledo","nCent",3158.0000000499999,6,123,"California State University, Los Angeles","PacSW",12,12,"University of New Orleans","DpSo",5.5100000199999997,6,123,"The University of Texas at Austin","TexMex",176625000,6,123,"Ohio Northern University","nCent",59322113,6,123,"The University of Texas at Austin","TexMex",200031208,6,123]
["University of Arkansas Little Rock","DpSo","   9.4:","Clemson","Caro","---","---",null,"Clemson","Caro","---","---",{"$f":"RANK(K131,K$8:K$176,-1)","v":{"$error":"#VALUE!"}},"Clemson","Caro","---","---","Clemson","Caro","---","---",{"$f":"RANK(T131,T$8:T$121,-1)","v":{"$error":"#VALUE!"}},"Clemson","Caro","---","---",{"$f":"RANK(Y131,Y$8:Y$176,-1)","v":{"$error":"#VALUE!"}},"Clemson","Caro","---","---",null,"Clemson","Caro","---","---"]
["Kansas","mCont","   9.4:","Horry Georgetown Tech","Caro","---","---",null,"Horry Georgetown Tech","Caro","---","---",{"$error":"#VALUE!"},"Horry Georgetown Tech","Caro","---","---","Horry Georgetown Tech","Caro","---","---",{"$error":"#VALUE!"},"Horry Georgetown Tech","Caro","---","---",{"$error":"#VALUE!"},"Horry Georgetown Tech","Caro","---","---",null,"Horry Georgetown Tech","Caro","---","---"]
["Florida Atlantic University","SoEast","   9.4:","NMIMS","Caro","---","---",null,"NMIMS","Caro","---","---",{"$error":"#VALUE!"},"NMIMS","Caro","---","---","NMIMS","Caro","---","---",{"$error":"#VALUE!"},"NMIMS","Caro","---","---",{"$error":"#VALUE!"},"NMIMS","Caro","---","---",null,"NMIMS","Caro","---","---"]
["The University of Texas at Arlington","TexMex","   9.4:","The Citadel","Caro","---","---",null,"The Citadel","Caro","---","---",{"$error":"#VALUE!"},"The Citadel","Caro","---","---","The Citadel","Caro","---","---",{"$error":"#VALUE!"},"The Citadel","Caro","---","---",{"$error":"#VALUE!"},"The Citadel","Caro","---","---",null,"The Citadel","Caro","---","---"]
["Clarkson University","UpNY","   9.4:","University of North Carolina at Charlotte","Caro","---","---",null,"University of North Carolina at Charlotte","Caro","---","---",{"$error":"#VALUE!"},"University of North Carolina at Charlotte","Caro","---","---","University of North Carolina at Charlotte","Caro","---","---",{"$error":"#VALUE!"},"University of North Carolina at Charlotte","Caro","---","---",{"$error":"#VALUE!"},"University of North Carolina at Charlotte","Caro","---","---",null,"University of North Carolina at Charlotte","Caro","---","---"]
["Georgia Institute of Technology","Caro","None","University of South Carolina","Caro","---","---",null,"University of South Carolina","Caro","---","---",{"$error":"#VALUE!"},"University of South Carolina","Caro","---","---","University of South Carolina","Caro","---","---",{"$error":"#VALUE!"},"University of South Carolina","Caro","---","---",{"$error":"#VALUE!"},"University of South Carolina","Caro","---","---",null,"University of South Carolina","Caro","---","---"]
["North Carolina State University","Caro","None","VIT","Caro","---","---",null,"VIT","Caro","---","---",{"$f":"RANK(K137,K$8:K$176,-1)","v":{"$error":"#VALUE!"}},"VIT","Caro","---","---","VIT","Caro","---","---",{"$error":"#VALUE!"},"VIT","Caro","---","---",{"$f":"RANK(Y137,Y$8:Y$176,-1)","v":{"$error":"#VALUE!"}},"VIT","Caro","---","---",null,"VIT","Caro","---","---"]
["Arkansas State","DpSo","None","Louisiana Lafayette","DpSo","---","---",null,"Louisiana Lafayette","DpSo","---","---",{"$error":"#VALUE!"},"Louisiana Lafayette","DpSo","---","---","Louisiana Lafayette","DpSo","---","---",{"$error":"#VALUE!"},"Louisiana Lafayette","DpSo","---","---",{"$error":"#VALUE!"},"Louisiana Lafayette","DpSo","---","---",null,"Louisiana Lafayette","DpSo","---","---"]
["Christian Brothers University","DpSo","None","Louisiana State University","DpSo","---","---",null,"Louisiana State University","DpSo","---","---",{"$error":"#VALUE!"},"Louisiana State University","DpSo","---","---","Louisiana State University","DpSo","---","---",{"$error":"#VALUE!"},"Louisiana State University","DpSo","---","---",{"$error":"#VALUE!"},"Louisiana State University","DpSo","---","---",null,"Louisiana State University","DpSo","---","---"]
["Louisiana Tech","DpSo","None","Mississippi State University","DpSo","---","---",null,"Mississippi State University","DpSo","---","---",{"$error":"#VALUE!"},"Mississippi State University","DpSo","---","---","Mississippi State University","DpSo","---","---",{"$error":"#VALUE!"},"Mississippi State University","DpSo","---","---",{"$error":"#VALUE!"},"Mississippi State University","DpSo","---","---",null,"Mississippi State University","DpSo","---","---"]
["Southeast China","DpSo","None","University of Arkansas Little Rock","DpSo","---","---",null,"University of Arkansas Little Rock","DpSo","---","---",{"$error":"#VALUE!"},"University of Arkansas Little Rock","DpSo","---","---","University of Arkansas Little Rock","DpSo","---","---",{"$error":"#VALUE!"},"University of Arkansas Little Rock","DpSo","---","---",{"$error":"#VALUE!"},"University of Arkansas Little Rock","DpSo","---","---",null,"University of Arkansas Little Rock","DpSo","---","---"]
["University of New Orleans","DpSo","None","University of Mississippi","DpSo","---","---",null,"University of Mississippi","DpSo","---","---",{"$error":"#VALUE!"},"University of Mississippi","DpSo","---","---","University of Mississippi","DpSo","---","---",{"$error":"#VALUE!"},"University of Mississippi","DpSo","---","---",{"$error":"#VALUE!"},"University of Mississippi","DpSo","---","---",null,"University of Mississippi","DpSo","---","---"]
["University of Tennessee Martin","DpSo","None","Indiana State University","GrtLks","---","---",null,"Indiana State University","GrtLks","---","---",{"$error":"#VALUE!"},"Indiana State University","GrtLks","---","---","Indiana State University","GrtLks","---","---",{"$error":"#VALUE!"},"Indiana State University","GrtLks","---","---",{"$error":"#VALUE!"},"Indiana State University","GrtLks","---","---",null,"Indiana State University","GrtLks","---","---"]
["Bradley University","GrtLks","None","Indiana University - Purdue University Fort Wayne","GrtLks","---","---",null,"Indiana University - Purdue University Fort Wayne","GrtLks","---","---",{"$error":"#VALUE!"},"Indiana University - Purdue University Fort Wayne","GrtLks","---","---","Indiana University - Purdue University Fort Wayne","GrtLks","---","---",{"$error":"#VALUE!"},"Indiana University - Purdue University Fort Wayne","GrtLks","---","---",{"$error":"#VALUE!"},"Indiana University - Purdue University Fort Wayne","GrtLks","---","---",null,"Indiana University - Purdue University Fort Wayne","GrtLks","---","---"]
["Illinois Institute of Technology","GrtLks","None","Northwestern University","GrtLks","---","---",null,"Northwestern University","GrtLks","---","---",{"$error":"#VALUE!"},"Northwestern University","GrtLks","---","---","Northwestern University","GrtLks","---","---",{"$error":"#VALUE!"},"Northwestern University","GrtLks","---","---",{"$error":"#VALUE!"},"Northwestern University","GrtLks","---","---",null,"Northwestern University","GrtLks","---","---"]
["Marquette Univiersity","GrtLks","None","Rose-Hulman Institute of Technology","GrtLks","---","---",null,"Rose-Hulman Institute of Technology","GrtLks","---","---",{"$error":"#VALUE!"},"Rose-Hulman Institute of Technology","GrtLks","---","---","Rose-Hulman Institute of Technology","GrtLks","---","---",{"$error":"#VALUE!"},"Rose-Hulman Institute of Technology","GrtLks","---","---",{"$error":"#VALUE!"},"Rose-Hulman Institute of Technology","GrtLks","---","---",null,"Rose-Hulman Institute of Technology","GrtLks","---","---"]
["Milwaukee School of Engineering","GrtLks","None","University of Evansville","GrtLks","---","---",null,"University of Evansville","GrtLks","---","---",null,"University of Evansville","GrtLks","---","---","University of Evansville","GrtLks","---","---",{"$error":"#VALUE!"},"University of Evansville","GrtLks","---","---",null,"University of Evansville","GrtLks","---","---",null,"University of Evansville","GrtLks","---","---"]
["Purdue University Lafayette","GrtLks","None","University of Notre Dame","GrtLks","---","---",null,"University of Notre Dame","GrtLks","---","---",{"$error":"#VALUE!"},"University of Notre Dame","GrtLks","---","---","University of Notre Dame","GrtLks","---","---",{"$error":"#VALUE!"},"University of Notre Dame","GrtLks","---","---",{"$error":"#VALUE!"},"University of Notre Dame","GrtLks","---","---",null,"University of Notre Dame","GrtLks","---","---"]
["Purdue University Northwest","GrtLks","None","University of Southern Indiana","GrtLks","---","---",null,"University of Southern Indiana","GrtLks","---","---",{"$error":"#VALUE!"},"University of Southern Indiana","GrtLks","---","---","University of Southern Indiana","GrtLks","---","---",{"$error":"#VALUE!"},"University of Southern Indiana","GrtLks","---","---",{"$error":"#VALUE!"},"University of Southern Indiana","GrtLks","---","---",null,"University of Southern Indiana","GrtLks","---","---"]
["Trine University","GrtLks","None","University of Wisconsin Milwaukee","GrtLks","---","---",null,"University of Wisconsin Milwaukee","GrtLks","---","---",{"$error":"#VALUE!"},"University of Wisconsin Milwaukee","GrtLks","---","---","University of Wisconsin Milwaukee","GrtLks","---","---",{"$error":"#VALUE!"},"University of Wisconsin Milwaukee","GrtLks","---","---",{"$error":"#VALUE!"},"University of Wisconsin Milwaukee","GrtLks","---","---",null,"University of Wisconsin Milwaukee","GrtLks","---","---"]
["University of Illinois Chicago","GrtLks","None","Valparaiso University","GrtLks","---","---",null,"Valparaiso University","GrtLks","---","---",null,"Valparaiso University","GrtLks","---","---","Valparaiso University","GrtLks","---","---",{"$error":"#VALUE!"},"Valparaiso University","GrtLks","---","---",null,"Valparaiso University","GrtLks","---","---",null,"Valparaiso University","GrtLks","---","---"]
["University of Illinois Urbana-Champaign","GrtLks","None","Columbia University ","Metro","---","---",null,"Columbia University ","Metro","---","---",{"$error":"#VALUE!"},"Columbia University ","Metro","---","---","Columbia University ","Metro","---","---",{"$error":"#VALUE!"},"Columbia University ","Metro","---","---",{"$error":"#VALUE!"},"Columbia University ","Metro","---","---",null,"Columbia University ","Metro","---","---"]
["University of Wisconsin Madison","GrtLks","None","Fairleigh Dickinson University ","Metro","---","---",null,"Fairleigh Dickinson University ","Metro","---","---",{"$error":"#VALUE!"},"Fairleigh Dickinson University ","Metro","---","---","Fairleigh Dickinson University ","Metro","---","---",{"$error":"#VALUE!"},"Fairleigh Dickinson University ","Metro","---","---",{"$error":"#VALUE!"},"Fairleigh Dickinson University ","Metro","---","---",null,"Fairleigh Dickinson University ","Metro","---","---"]
["Manhattan College ","Metro","None","New Jersey Institute of Technology ","Metro","---","---",null,"New Jersey Institute of Technology ","Metro","---","---",{"$error":"#VALUE!"},"New Jersey Institute of Technology ","Metro","---","---","New Jersey Institute of Technology ","Metro","---","---",{"$error":"#VALUE!"},"New Jersey Institute of Technology ","Metro","---","---",{"$error":"#VALUE!"},"New Jersey Institute of Technology ","Metro","---","---",null,"New Jersey Institute of Technology ","Metro","---","---"]
["NYC College of Technology","Metro","None","New York University ","Metro","---","---",null,"New York University ","Metro","---","---",null,"New York University ","Metro","---","---","New York University ","Metro","---","---",{"$error":"#VALUE!"},"New York University ","Metro","---","---",null,"New York University ","Metro","---","---",null,"New York University ","Metro","---","---"]
["Rowan University ","Metro","None","Drexel University","mAtl","---","---",null,"Drexel University","mAtl","---","---",{"$error":"#VALUE!"},"Drexel University","mAtl","---","---","Drexel University","mAtl","---","---",{"$error":"#VALUE!"},"Drexel University","mAtl","---","---",{"$error":"#VALUE!"},"Drexel University","mAtl","---","---",null,"Drexel University","mAtl","---","---"]
["Rutgers University","Metro","None","Morgan State University","mAtl","---","---",null,"Morgan State University","mAtl","---","---",{"$error":"#VALUE!"},"Morgan State University","mAtl","---","---","Morgan State University","mAtl","---","---",{"$error":"#VALUE!"},"Morgan State University","mAtl","---","---",{"$error":"#VALUE!"},"Morgan State University","mAtl","---","---",null,"Morgan State University","mAtl","---","---"]
["The College of New Jersey ","Metro","None","Pennsylvania State University - Harrisburg","mAtl","---","---",null,"Pennsylvania State University - Harrisburg","mAtl","---","---",{"$error":"#VALUE!"},"Pennsylvania State University - Harrisburg","mAtl","---","---","Pennsylvania State University - Harrisburg","mAtl","---","---",{"$error":"#VALUE!"},"Pennsylvania State University - Harrisburg","mAtl","---","---",{"$error":"#VALUE!"},"Pennsylvania State University - Harrisburg","mAtl","---","---",null,"Pennsylvania State University - Harrisburg","mAtl","---","---"]
["The Cooper Union ","Metro","None","University of Delaware","mAtl","---","---",null,"University of Delaware","mAtl","---","---",{"$error":"#VALUE!"},"University of Delaware","mAtl","---","---","University of Delaware","mAtl","---","---",{"$error":"#VALUE!"},"University of Delaware","mAtl","---","---",{"$error":"#VALUE!"},"University of Delaware","mAtl","---","---",null,"University of Delaware","mAtl","---","---"]
["Lafayette College","mAtl","None","University of Pittsburgh at Johnstown","mAtl","---","---",null,"University of Pittsburgh at Johnstown","mAtl","---","---",null,"University of Pittsburgh at Johnstown","mAtl","---","---","University of Pittsburgh at Johnstown","mAtl","---","---",{"$error":"#VALUE!"},"University of Pittsburgh at Johnstown","mAtl","---","---",null,"University of Pittsburgh at Johnstown","mAtl","---","---",null,"University of Pittsburgh at Johnstown","mAtl","---","---"]
["Lehigh University","mAtl","None","Arkansas","mCont","---","---",null,"Arkansas","mCont","---","---",{"$error":"#VALUE!"},"Arkansas","mCont","---","---","Arkansas","mCont","---","---",{"$error":"#VALUE!"},"Arkansas","mCont","---","---",{"$error":"#VALUE!"},"Arkansas","mCont","---","---",null,"Arkansas","mCont","---","---"]
["University of Maryland - University Park","mAtl","None","Kansas","mCont","---","---",null,"Kansas","mCont","---","---",{"$error":"#VALUE!"},"Kansas","mCont","---","---","Kansas","mCont","---","---",{"$error":"#VALUE!"},"Kansas","mCont","---","---",{"$error":"#VALUE!"},"Kansas","mCont","---","---",null,"Kansas","mCont","---","---"]
["Kansas State","mCont","None","Missouri - Columbia","mCont","---","---",null,"Missouri - Columbia","mCont","---","---",{"$error":"#VALUE!"},"Missouri - Columbia","mCont","---","---","Missouri - Columbia","mCont","---","---",{"$f":"RANK(T163,T$8:T$121,-1)","v":{"$error":"#VALUE!"}},"Missouri - Columbia","mCont","---","---",{"$error":"#VALUE!"},"Missouri - Columbia","mCont","---","---",null,"Missouri - Columbia","mCont","---","---"]
["Missouri - Kansas City","mCont","None","Missouri State","mCont","---","---",null,"Missouri State","mCont","---","---",{"$error":"#VALUE!"},"Missouri State","mCont","---","---","Missouri State","mCont","---","---",{"$error":"#VALUE!"},"Missouri State","mCont","---","---",{"$error":"#VALUE!"},"Missouri State","mCont","---","---",null,"Missouri State","mCont","---","---"]
["MissourI S&T","mCont","None","Saint Louis University","mCont","---","---",null,"Saint Louis University","mCont","---","---",{"$error":"#VALUE!"},"Saint Louis University","mCont","---","---","Saint Louis University","mCont","---","---",{"$error":"#VALUE!"},"Saint Louis University","mCont","---","---",{"$error":"#VALUE!"},"Saint Louis University","mCont","---","---",null,"Saint Louis University","mCont","---","---"]
["Nebraska - Lincoln","mCont","None","CSU, Fresno","mPac","---","---",null,"CSU, Fresno","mPac","---","---",{"$error":"#VALUE!"},"CSU, Fresno","mPac","---","---","CSU, Fresno","mPac","---","---",{"$error":"#VALUE!"},"CSU, Fresno","mPac","---","---",{"$error":"#VALUE!"},"CSU, Fresno","mPac","---","---",null,"CSU, Fresno","mPac","---","---"]
["Oklahoma","mCont","None","CSU, Sacramento ","mPac","---","---",null,"CSU, Sacramento ","mPac","---","---",{"$error":"#VALUE!"},"CSU, Sacramento ","mPac","---","---","CSU, Sacramento ","mPac","---","---",{"$error":"#VALUE!"},"CSU, Sacramento ","mPac","---","---",{"$error":"#VALUE!"},"CSU, Sacramento ","mPac","---","---",null,"CSU, Sacramento ","mPac","---","---"]
["Oklahoma State","mCont","None","CSU, San Francisco","mPac","---","---",null,"CSU, San Francisco","mPac","---","---",{"$error":"#VALUE!"},"CSU, San Francisco","mPac","---","---","CSU, San Francisco","mPac","---","---",{"$error":"#VALUE!"},"CSU, San Francisco","mPac","---","---",{"$error":"#VALUE!"},"CSU, San Francisco","mPac","---","---",null,"CSU, San Francisco","mPac","---","---"]
["Southern Illinois - Carbondale","mCont","None","Dordt College","mWest","---","---",null,"Dordt College","mWest","---","---",{"$error":"#VALUE!"},"Dordt College","mWest","---","---","Dordt College","mWest","---","---",{"$error":"#VALUE!"},"Dordt College","mWest","---","---",{"$error":"#VALUE!"},"Dordt College","mWest","---","---",null,"Dordt College","mWest","---","---"]
["Southern Illinois - Edwardsville","mCont","None","University of Iowa","mWest","---","---",null,"University of Iowa","mWest","---","---",{"$error":"#VALUE!"},"University of Iowa","mWest","---","---","University of Iowa","mWest","---","---",{"$error":"#VALUE!"},"University of Iowa","mWest","---","---",{"$error":"#VALUE!"},"University of Iowa","mWest","---","---",null,"University of Iowa","mWest","---","---"]
["CSU, Chico","mPac","None","University of Minnesota Duluth","mWest","---","---",null,"University of Minnesota Duluth","mWest","---","---",{"$error":"#VALUE!"},"University of Minnesota Duluth","mWest","---","---","University of Minnesota Duluth","mWest","---","---",{"$error":"#VALUE!"},"University of Minnesota Duluth","mWest","---","---",{"$error":"#VALUE!"},"University of Minnesota Duluth","mWest","---","---",null,"University of Minnesota Duluth","mWest","---","---"]
["CSU, San Jose","mPac","None","University of Minnesota Twin Cities","mWest","---","---",null,"University of Minnesota Twin Cities","mWest","---","---",{"$error":"#VALUE!"},"University of Minnesota Twin Cities","mWest","---","---","University of Minnesota Twin Cities","mWest","---","---",{"$error":"#VALUE!"},"University of Minnesota Twin Cities","mWest","---","---",{"$error":"#VALUE!"},"University of Minnesota Twin Cities","mWest","---","---",null,"University of Minnesota Twin Cities","mWest","---","---"]
["HoHai University","mPac","None","University of North Dakota","mWest","---","---",null,"University of North Dakota","mWest","---","---",{"$error":"#VALUE!"},"University of North Dakota","mWest","---","---","University of North Dakota","mWest","---","---",{"$error":"#VALUE!"},"University of North Dakota","mWest","---","---",{"$error":"#VALUE!"},"University of North Dakota","mWest","---","---",null,"University of North Dakota","mWest","---","---"]
["Tongji University","mPac","None","University of Wisconsin Platteville","mWest","---","---",null,"University of Wisconsin Platteville","mWest","---","---",{"$error":"#VALUE!"},"University of Wisconsin Platteville","mWest","---","---","University of Wisconsin Platteville","mWest","---","---",{"$error":"#VALUE!"},"University of Wisconsin Platteville","mWest","---","---",{"$error":"#VALUE!"},"University of Wisconsin Platteville","mWest","---","---",null,"University of Wisconsin Platteville","mWest","---","---"]
["UC Berkeley","mPac","None","Central Connecticut State University","NewEng","---","---",null,"Central Connecticut State University","NewEng","---","---",{"$error":"#VALUE!"},"Central Connecticut State University","NewEng","---","---","Central Connecticut State University","NewEng","---","---",{"$error":"#VALUE!"},"Central Connecticut State University","NewEng","---","---",{"$error":"#VALUE!"},"Central Connecticut State University","NewEng","---","---",null,"Central Connecticut State University","NewEng","---","---"]
["UC Davis","mPac","None","Merrimack College","NewEng","---","---",null,"Merrimack College","NewEng","---","---",{"$error":"#VALUE!"},"Merrimack College","NewEng","---","---","Merrimack College","NewEng","---","---",{"$error":"#VALUE!"},"Merrimack College","NewEng","---","---",{"$error":"#VALUE!"},"Merrimack College","NewEng","---","---",null,"Merrimack College","NewEng","---","---"]
["Univeristy of Nevada, Reno","mPac","None","Northeastern University","NewEng","---","---",null,"Northeastern University","NewEng","---","---",null,"Northeastern University","NewEng","---","---","Northeastern University","NewEng","---","---",{"$error":"#VALUE!"},"Northeastern University","NewEng","---","---",null,"Northeastern University","NewEng","---","---",null,"Northeastern University","NewEng","---","---"]
["Zhejiang University","mPac","None","Norwich University","NewEng","---","---",null,"Norwich University","NewEng","---","---",null,"Norwich University","NewEng","---","---","Norwich University","NewEng","---","---",{"$error":"#VALUE!"},"Norwich University","NewEng","---","---",null,"Norwich University","NewEng","---","---",null,"Norwich University","NewEng","---","---"]
["Iowa State University","mWest","None","Roger Williams University","NewEng","---","---",null,"Roger Williams University","NewEng","---","---",null,"Roger Williams University","NewEng","---","---","Roger Williams University","NewEng","---","---",{"$error":"#VALUE!"},"Roger Williams University","NewEng","---","---",null,"Roger Williams University","NewEng","---","---",null,"Roger Williams University","NewEng","---","---"]
["Lakehead University","mWest","None","University of Hartford","NewEng","---","---",null,"University of Hartford","NewEng","---","---",null,"University of Hartford","NewEng","---","---","University of Hartford","NewEng","---","---",{"$error":"#VALUE!"},"University of Hartford","NewEng","---","---",null,"University of Hartford","NewEng","---","---",null,"University of Hartford","NewEng","---","---"]
["Minnesota State University Mankato","mWest","None","University of Maine","NewEng","---","---",null,"University of Maine","NewEng","---","---",null,"University of Maine","NewEng","---","---","University of Maine","NewEng","---","---",{"$error":"#VALUE!"},"University of Maine","NewEng","---","---",null,"University of Maine","NewEng","---","---",null,"University of Maine","NewEng","---","---"]
["North Dakota State University","mWest","None","University of Massachusetts Dartmouth","NewEng","---","---",null,"University of Massachusetts Dartmouth","NewEng","---","---",null,"University of Massachusetts Dartmouth","NewEng","---","---","University of Massachusetts Dartmouth","NewEng","---","---",{"$error":"#VALUE!"},"University of Massachusetts Dartmouth","NewEng","---","---",null,"University of Massachusetts Dartmouth","NewEng","---","---",null,"University of Massachusetts Dartmouth","NewEng","---","---"]
["South Dakota State University","mWest","None","University of Massachusetts Lowell","NewEng","---","---",null,"University of Massachusetts Lowell","NewEng","---","---",null,"University of Massachusetts Lowell","NewEng","---","---","University of Massachusetts Lowell","NewEng","---","---",{"$error":"#VALUE!"},"University of Massachusetts Lowell","NewEng","---","---",null,"University of Massachusetts Lowell","NewEng","---","---",null,"University of Massachusetts Lowell","NewEng","---","---"]
["University of Manitoba","mWest","None","University of New Hampshire","NewEng","---","---",null,"University of New Hampshire","NewEng","---","---",null,"University of New Hampshire","NewEng","---","---","University of New Hampshire","NewEng","---","---",{"$error":"#VALUE!"},"University of New Hampshire","NewEng","---","---",null,"University of New Hampshire","NewEng","---","---",null,"University of New Hampshire","NewEng","---","---"]
["Universite Laval","NewEng","None","University of New Haven","NewEng","---","---",null,"University of New Haven","NewEng","---","---",null,"University of New Haven","NewEng","---","---","University of New Haven","NewEng","---","---",{"$error":"#VALUE!"},"University of New Haven","NewEng","---","---",null,"University of New Haven","NewEng","---","---",null,"University of New Haven","NewEng","---","---"]
["University of Connecticut","NewEng","None","University of Rhode Island","NewEng","---","---",null,"University of Rhode Island","NewEng","---","---",null,"University of Rhode Island","NewEng","---","---","University of Rhode Island","NewEng","---","---",{"$error":"#VALUE!"},"University of Rhode Island","NewEng","---","---",null,"University of Rhode Island","NewEng","---","---",null,"University of Rhode Island","NewEng","---","---"]
["University of Massachusetts Amherst","NewEng","None","Wentworth Institute of Technology","NewEng","---","---",null,"Wentworth Institute of Technology","NewEng","---","---",null,"Wentworth Institute of Technology","NewEng","---","---","Wentworth Institute of Technology","NewEng","---","---",{"$error":"#VALUE!"},"Wentworth Institute of Technology","NewEng","---","---",null,"Wentworth Institute of Technology","NewEng","---","---",null,"Wentworth Institute of Technology","NewEng","---","---"]
["University of New Brunswick","NewEng","None","Western New England University","NewEng","---","---",null,"Western New England University","NewEng","---","---",null,"Western New England University","NewEng","---","---","Western New England University","NewEng","---","---",{"$error":"#VALUE!"},"Western New England University","NewEng","---","---",null,"Western New England University","NewEng","---","---",null,"Western New England University","NewEng","---","---"]
["University of Vermont","NewEng","None","Worcester Polytechnical Institute","NewEng","---","---",null,"Worcester Polytechnical Institute","NewEng","---","---",null,"Worcester Polytechnical Institute","NewEng","---","---","Worcester Polytechnical Institute","NewEng","---","---",{"$error":"#VALUE!"},"Worcester Polytechnical Institute","NewEng","---","---",null,"Worcester Polytechnical Institute","NewEng","---","---",null,"Worcester Polytechnical Institute","NewEng","---","---"]
["Lawrence Technological University","nCent","None","Wayne State University","nCent","---","---",null,"Wayne State University","nCent","---","---",null,"Wayne State University","nCent","---","---","Wayne State University","nCent","---","---",{"$f":"RANK(T190,T$8:T$96,-1)","v":{"$error":"#VALUE!"}},"Wayne State University","nCent","---","---",null,"Wayne State University","nCent","---","---",null,"Wayne State University","nCent","---","---"]
["Michigan State University","nCent","None","Western Michigan University","nCent","---","---",null,"Western Michigan University","nCent","---","---",null,"Western Michigan University","nCent","---","---","Western Michigan University","nCent","---","---",{"$error":"#VALUE!"},"Western Michigan University","nCent","---","---",null,"Western Michigan University","nCent","---","---",null,"Western Michigan University","nCent","---","---"]
["Michigan Technological University","nCent","None","Carnegie Mellon University","OhioV","---","---",null,"Carnegie Mellon University","OhioV","---","---",null,"Carnegie Mellon University","OhioV","---","---","Carnegie Mellon University","OhioV","---","---",{"$error":"#VALUE!"},"Carnegie Mellon University","OhioV","---","---",null,"Carnegie Mellon University","OhioV","---","---",null,"Carnegie Mellon University","OhioV","---","---"]
["Ohio Northern University","nCent","None","Cincinnati State University","OhioV","---","---",null,"Cincinnati State University","OhioV","---","---",null,"Cincinnati State University","OhioV","---","---","Cincinnati State University","OhioV","---","---",{"$error":"#VALUE!"},"Cincinnati State University","OhioV","---","---",null,"Cincinnati State University","OhioV","---","---",null,"Cincinnati State University","OhioV","---","---"]
["University of Michigan","nCent","None","University of Kentucky","OhioV","---","---",null,"University of Kentucky","OhioV","---","---",null,"University of Kentucky","OhioV","---","---","University of Kentucky","OhioV","---","---",{"$error":"#VALUE!"},"University of Kentucky","OhioV","---","---",null,"University of Kentucky","OhioV","---","---",null,"University of Kentucky","OhioV","---","---"]
["University of Toledo","nCent","None","University of Pittsburgh","OhioV","---","---",null,"University of Pittsburgh","OhioV","---","---",null,"University of Pittsburgh","OhioV","---","---","University of Pittsburgh","OhioV","---","---",{"$error":"#VALUE!"},"University of Pittsburgh","OhioV","---","---",null,"University of Pittsburgh","OhioV","---","---",null,"University of Pittsburgh","OhioV","---","---"]
["Cleveland State University","OhioV","None","BSU","PacNW","---","---",null,"BSU","PacNW","---","---",null,"BSU","PacNW","---","---","BSU","PacNW","---","---",{"$error":"#VALUE!"},"BSU","PacNW","---","---",null,"BSU","PacNW","---","---",null,"BSU","PacNW","---","---"]
["Ohio University","OhioV","None","CC","PacNW","---","---",null,"CC","PacNW","---","---",null,"CC","PacNW","---","---","CC","PacNW","---","---",{"$error":"#VALUE!"},"CC","PacNW","---","---",null,"CC","PacNW","---","---",null,"CC","PacNW","---","---"]
["The Ohio State University","OhioV","None","SMC","PacNW","---","---",null,"SMC","PacNW","---","---",null,"SMC","PacNW","---","---","SMC","PacNW","---","---",{"$error":"#VALUE!"},"SMC","PacNW","---","---",null,"SMC","PacNW","---","---",null,"SMC","PacNW","---","---"]
["University of Akron","OhioV","None","WSU","PacNW","---","---",null,"WSU","PacNW","---","---",null,"WSU","PacNW","---","---","WSU","PacNW","---","---",{"$error":"#VALUE!"},"WSU","PacNW","---","---",null,"WSU","PacNW","---","---",null,"WSU","PacNW","---","---"]
["University of Cincinnati","OhioV","None","California Baptist University","PacSW","---","---",null,"California Baptist University","PacSW","---","---",null,"California Baptist University","PacSW","---","---","California Baptist University","PacSW","---","---",{"$f":"RANK(T200,T$8:T$87,-1)","v":{"$error":"#VALUE!"}},"California Baptist University","PacSW","---","---",null,"California Baptist University","PacSW","---","---",null,"California Baptist University","PacSW","---","---"]
["University of Dayton","OhioV","None","California State University, Fullerton","PacSW","---","---",null,"California State University, Fullerton","PacSW","---","---",null,"California State University, Fullerton","PacSW","---","---","California State University, Fullerton","PacSW","---","---",{"$error":"#VALUE!"},"California State University, Fullerton","PacSW","---","---",null,"California State University, Fullerton","PacSW","---","---",null,"California State University, Fullerton","PacSW","---","---"]
["University of Louisville","OhioV","None","Loyola Marymount University","PacSW","---","---",null,"Loyola Marymount University","PacSW","---","---",null,"Loyola Marymount University","PacSW","---","---","Loyola Marymount University","PacSW","---","---",{"$error":"#VALUE!"},"Loyola Marymount University","PacSW","---","---",null,"Loyola Marymount University","PacSW","---","---",null,"Loyola Marymount University","PacSW","---","---"]
["Western Kentucky University","OhioV","None","University of California, Irvine","PacSW","---","---",null,"University of California, Irvine","PacSW","---","---",null,"University of California, Irvine","PacSW","---","---","University of California, Irvine","PacSW","---","---",{"$error":"#VALUE!"},"University of California, Irvine","PacSW","---","---",null,"University of California, Irvine","PacSW","---","---",null,"University of California, Irvine","PacSW","---","---"]
["Youngstown State University","OhioV","None","University of Nevada, Las Vegas","PacSW","---","---",null,"University of Nevada, Las Vegas","PacSW","---","---",null,"University of Nevada, Las Vegas","PacSW","---","---","University of Nevada, Las Vegas","PacSW","---","---",{"$error":"#VALUE!"},"University of Nevada, Las Vegas","PacSW","---","---",null,"University of Nevada, Las Vegas","PacSW","---","---",null,"University of Nevada, Las Vegas","PacSW","---","---"]
["ISU","PacNW","None","University of Southern California","PacSW","---","---",null,"University of Southern California","PacSW","---","---",null,"University of Southern California","PacSW","---","---","University of Southern California","PacSW","---","---",{"$error":"#VALUE!"},"University of Southern California","PacSW","---","---",null,"University of Southern California","PacSW","---","---",null,"University of Southern California","PacSW","---","---"]
["MSU","PacNW","None","Metropolitan State University, Denver","RkyMtn","---","---",null,"Metropolitan State University, Denver","RkyMtn","---","---",null,"Metropolitan State University, Denver","RkyMtn","---","---","Metropolitan State University, Denver","RkyMtn","---","---",{"$error":"#VALUE!"},"Metropolitan State University, Denver","RkyMtn","---","---",null,"Metropolitan State University, Denver","RkyMtn","---","---",null,"Metropolitan State University, Denver","RkyMtn","---","---"]
["OIT","PacNW","None","New Mexico State University","RkyMtn","---","---",null,"New Mexico State University","RkyMtn","---","---",null,"New Mexico State University","RkyMtn","---","---","New Mexico State University","RkyMtn","---","---",{"$error":"#VALUE!"},"New Mexico State University","RkyMtn","---","---",null,"New Mexico State University","RkyMtn","---","---",null,"New Mexico State University","RkyMtn","---","---"]
["Oregon State University","PacNW","None","United States Air Force Academy","RkyMtn","---","---",null,"United States Air Force Academy","RkyMtn","---","---",null,"United States Air Force Academy","RkyMtn","---","---","United States Air Force Academy","RkyMtn","---","---",{"$error":"#VALUE!"},"United States Air Force Academy","RkyMtn","---","---",null,"United States Air Force Academy","RkyMtn","---","---",null,"United States Air Force Academy","RkyMtn","---","---"]
["PSU","PacNW","None","University of Colorado - Boulder","RkyMtn","---","---",null,"University of Colorado - Boulder","RkyMtn","---","---",null,"University of Colorado - Boulder","RkyMtn","---","---","University of Colorado - Boulder","RkyMtn","---","---",{"$error":"#VALUE!"},"University of Colorado - Boulder","RkyMtn","---","---",null,"University of Colorado - Boulder","RkyMtn","---","---",null,"University of Colorado - Boulder","RkyMtn","---","---"]
["UI","PacNW","None","University of New Mexico","RkyMtn","---","---",null,"University of New Mexico","RkyMtn","---","---",null,"University of New Mexico","RkyMtn","---","---","University of New Mexico","RkyMtn","---","---",{"$error":"#VALUE!"},"University of New Mexico","RkyMtn","---","---",null,"University of New Mexico","RkyMtn","---","---",null,"University of New Mexico","RkyMtn","---","---"]
["University of Alaska Anchorage","PacNW","None","University of Utah","RkyMtn","---","---",null,"University of Utah","RkyMtn","---","---",null,"University of Utah","RkyMtn","---","---","University of Utah","RkyMtn","---","---",{"$error":"#VALUE!"},"University of Utah","RkyMtn","---","---",null,"University of Utah","RkyMtn","---","---",null,"University of Utah","RkyMtn","---","---"]
["University of Alaska Fairbanks","PacNW","None","University of Wyoming","RkyMtn","---","---",null,"University of Wyoming","RkyMtn","---","---",null,"University of Wyoming","RkyMtn","---","---","University of Wyoming","RkyMtn","---","---",{"$error":"#VALUE!"},"University of Wyoming","RkyMtn","---","---",null,"University of Wyoming","RkyMtn","---","---",null,"University of Wyoming","RkyMtn","---","---"]
["University of British Columbia","PacNW","None","Utah State University","RkyMtn","---","---",null,"Utah State University","RkyMtn","---","---",null,"Utah State University","RkyMtn","---","---","Utah State University","RkyMtn","---","---",{"$f":"RANK(T213,T$8:T$94,-1)","v":{"$error":"#VALUE!"}},"Utah State University","RkyMtn","---","---",null,"Utah State University","RkyMtn","---","---",null,"Utah State University","RkyMtn","---","---"]
["University of Washington","PacNW","None","Alabama A&M","SoEast","---","---",null,"Alabama A&M","SoEast","---","---",null,"Alabama A&M","SoEast","---","---","Alabama A&M","SoEast","---","---",{"$error":"#VALUE!"},"Alabama A&M","SoEast","---","---",null,"Alabama A&M","SoEast","---","---",null,"Alabama A&M","SoEast","---","---"]
["Arizona State University","PacSW","None","Auburn University","SoEast","---","---",null,"Auburn University","SoEast","---","---",null,"Auburn University","SoEast","---","---","Auburn University","SoEast","---","---",{"$error":"#VALUE!"},"Auburn University","SoEast","---","---",null,"Auburn University","SoEast","---","---",null,"Auburn University","SoEast","---","---"]
["Calfornia Polytechnic University, Pomona","PacSW","None","Emby-Riddle University","SoEast","---","---",null,"Emby-Riddle University","SoEast","---","---",null,"Emby-Riddle University","SoEast","---","---","Emby-Riddle University","SoEast","---","---",{"$error":"#VALUE!"},"Emby-Riddle University","SoEast","---","---",null,"Emby-Riddle University","SoEast","---","---",null,"Emby-Riddle University","SoEast","---","---"]
["Calfornia Polytechnic University, San Luis Obispo","PacSW","None","Florida Atlantic University","SoEast","---","---",null,"Florida Atlantic University","SoEast","---","---",null,"Florida Atlantic University","SoEast","---","---","Florida Atlantic University","SoEast","---","---",{"$error":"#VALUE!"},"Florida Atlantic University","SoEast","---","---",null,"Florida Atlantic University","SoEast","---","---",null,"Florida Atlantic University","SoEast","---","---"]
["California State University, Long Beach","PacSW","None","Florida Institute of Technology","SoEast","---","---",null,"Florida Institute of Technology","SoEast","---","---",null,"Florida Institute of Technology","SoEast","---","---","Florida Institute of Technology","SoEast","---","---",{"$error":"#VALUE!"},"Florida Institute of Technology","SoEast","---","---",null,"Florida Institute of Technology","SoEast","---","---",null,"Florida Institute of Technology","SoEast","---","---"]
["California State University, Los Angeles","PacSW","None","Florida International University","SoEast","---","---",null,"Florida International University","SoEast","---","---",null,"Florida International University","SoEast","---","---","Florida International University","SoEast","---","---",{"$error":"#VALUE!"},"Florida International University","SoEast","---","---",null,"Florida International University","SoEast","---","---",null,"Florida International University","SoEast","---","---"]
["California State University, Northridge","PacSW","None","Florida Stateuniversity-Florida A&M University","SoEast","---","---",null,"Florida Stateuniversity-Florida A&M University","SoEast","---","---",null,"Florida Stateuniversity-Florida A&M University","SoEast","---","---","Florida Stateuniversity-Florida A&M University","SoEast","---","---",{"$error":"#VALUE!"},"Florida Stateuniversity-Florida A&M University","SoEast","---","---",null,"Florida Stateuniversity-Florida A&M University","SoEast","---","---",null,"Florida Stateuniversity-Florida A&M University","SoEast","---","---"]
["Northern Arizona University","PacSW","None","Georgia Southern University","SoEast","---","---",null,"Georgia Southern University","SoEast","---","---",null,"Georgia Southern University","SoEast","---","---","Georgia Southern University","SoEast","---","---",{"$error":"#VALUE!"},"Georgia Southern University","SoEast","---","---",null,"Georgia Southern University","SoEast","---","---",null,"Georgia Southern University","SoEast","---","---"]
["San Diego State University","PacSW","None","Lipscomb University","SoEast","---","---",null,"Lipscomb University","SoEast","---","---",null,"Lipscomb University","SoEast","---","---","Lipscomb University","SoEast","---","---",{"$error":"#VALUE!"},"Lipscomb University","SoEast","---","---",null,"Lipscomb University","SoEast","---","---",null,"Lipscomb University","SoEast","---","---"]
["University of Arizona","PacSW","None","Puerto Rico Polytechnique University","SoEast","---","---",null,"Puerto Rico Polytechnique University","SoEast","---","---",null,"Puerto Rico Polytechnique University","SoEast","---","---","Puerto Rico Polytechnique University","SoEast","---","---",{"$error":"#VALUE!"},"Puerto Rico Polytechnique University","SoEast","---","---",null,"Puerto Rico Polytechnique University","SoEast","---","---",null,"Puerto Rico Polytechnique University","SoEast","---","---"]
["University of California, Los Angeles","PacSW","None","Savannah State University","SoEast","---","---",null,"Savannah State University","SoEast","---","---",null,"Savannah State University","SoEast","---","---","Savannah State University","SoEast","---","---",{"$error":"#VALUE!"},"Savannah State University","SoEast","---","---",null,"Savannah State University","SoEast","---","---",null,"Savannah State University","SoEast","---","---"]
["University of California, San Diego","PacSW","None","Tennessee State Univeristy","SoEast","---","---",null,"Tennessee State Univeristy","SoEast","---","---",null,"Tennessee State Univeristy","SoEast","---","---","Tennessee State Univeristy","SoEast","---","---",{"$error":"#VALUE!"},"Tennessee State Univeristy","SoEast","---","---",null,"Tennessee State Univeristy","SoEast","---","---",null,"Tennessee State Univeristy","SoEast","---","---"]
["University of Hawaii, Manoa","PacSW","None","Tennessee Tech University","SoEast","---","---",null,"Tennessee Tech University","SoEast","---","---",null,"Tennessee Tech University","SoEast","---","---","Tennessee Tech University","SoEast","---","---",{"$error":"#VALUE!"},"Tennessee Tech University","SoEast","---","---",null,"Tennessee Tech University","SoEast","---","---",null,"Tennessee Tech University","SoEast","---","---"]
["Brigham Young University","RkyMtn","None","Univeristy of Tennesee Chattanooga","SoEast","---","---",null,"Univeristy of Tennesee Chattanooga","SoEast","---","---",null,"Univeristy of Tennesee Chattanooga","SoEast","---","---","Univeristy of Tennesee Chattanooga","SoEast","---","---",{"$error":"#VALUE!"},"Univeristy of Tennesee Chattanooga","SoEast","---","---",null,"Univeristy of Tennesee Chattanooga","SoEast","---","---",null,"Univeristy of Tennesee Chattanooga","SoEast","---","---"]
["Colorado School of Mines","RkyMtn","None","University of Alabama","SoEast","---","---",null,"University of Alabama","SoEast","---","---",null,"University of Alabama","SoEast","---","---","University of Alabama","SoEast","---","---",{"$error":"#VALUE!"},"University of Alabama","SoEast","---","---",null,"University of Alabama","SoEast","---","---",null,"University of Alabama","SoEast","---","---"]
["Colorado State University","RkyMtn","None","University of Alabama at Huntsville","SoEast","---","---",null,"University of Alabama at Huntsville","SoEast","---","---",null,"University of Alabama at Huntsville","SoEast","---","---","University of Alabama at Huntsville","SoEast","---","---",{"$error":"#VALUE!"},"University of Alabama at Huntsville","SoEast","---","---",null,"University of Alabama at Huntsville","SoEast","---","---",null,"University of Alabama at Huntsville","SoEast","---","---"]
["New Mexico Tech","RkyMtn","None","University of Miami","SoEast","---","---",null,"University of Miami","SoEast","---","---",null,"University of Miami","SoEast","---","---","University of Miami","SoEast","---","---",{"$error":"#VALUE!"},"University of Miami","SoEast","---","---",null,"University of Miami","SoEast","---","---",null,"University of Miami","SoEast","---","---"]
["South Dakota School of Mines","RkyMtn","None","University of South Alabama","SoEast","---","---",null,"University of South Alabama","SoEast","---","---",null,"University of South Alabama","SoEast","---","---","University of South Alabama","SoEast","---","---",{"$error":"#VALUE!"},"University of South Alabama","SoEast","---","---",null,"University of South Alabama","SoEast","---","---",null,"University of South Alabama","SoEast","---","---"]
["University of Colorado - Denver","RkyMtn","None","University of South Florida","SoEast","---","---",null,"University of South Florida","SoEast","---","---",null,"University of South Florida","SoEast","---","---","University of South Florida","SoEast","---","---",{"$error":"#VALUE!"},"University of South Florida","SoEast","---","---",null,"University of South Florida","SoEast","---","---",null,"University of South Florida","SoEast","---","---"]
["Florida Gulf Coast University","SoEast","None","Lamar University","TexMex","---","---",null,"Lamar University","TexMex","---","---",null,"Lamar University","TexMex","---","---","Lamar University","TexMex","---","---",{"$f":"RANK(T233,T$8:T$166,-1)","v":{"$error":"#VALUE!"}},"Lamar University","TexMex","---","---",null,"Lamar University","TexMex","---","---",null,"Lamar University","TexMex","---","---"]
["Kennesaw State University","SoEast","None","Southern Methodist University","TexMex","---","---",null,"Southern Methodist University","TexMex","---","---",null,"Southern Methodist University","TexMex","---","---","Southern Methodist University","TexMex","---","---",null,"Southern Methodist University","TexMex","---","---",null,"Southern Methodist University","TexMex","---","---",null,"Southern Methodist University","TexMex","---","---"]
["Southwest Jiaotong University","SoEast","None","Texas A&M University","TexMex","---","---",null,"Texas A&M University","TexMex","---","---",null,"Texas A&M University","TexMex","---","---","Texas A&M University","TexMex","---","---",null,"Texas A&M University","TexMex","---","---",null,"Texas A&M University","TexMex","---","---",null,"Texas A&M University","TexMex","---","---"]
["University of Central Florida","SoEast","None","Texas A&M University-Kingsville","TexMex","---","---",null,"Texas A&M University-Kingsville","TexMex","---","---",null,"Texas A&M University-Kingsville","TexMex","---","---","Texas A&M University-Kingsville","TexMex","---","---",null,"Texas A&M University-Kingsville","TexMex","---","---",null,"Texas A&M University-Kingsville","TexMex","---","---",null,"Texas A&M University-Kingsville","TexMex","---","---"]
["University of Florida","SoEast","None","The University of Texas at Arlington","TexMex","---","---",null,"The University of Texas at Arlington","TexMex","---","---",null,"The University of Texas at Arlington","TexMex","---","---","The University of Texas at Arlington","TexMex","---","---",null,"The University of Texas at Arlington","TexMex","---","---",null,"The University of Texas at Arlington","TexMex","---","---",null,"The University of Texas at Arlington","TexMex","---","---"]
["University of North Florida","SoEast","None","The University of Texas at El Paso","TexMex","---","---",null,"The University of Texas at El Paso","TexMex","---","---",null,"The University of Texas at El Paso","TexMex","---","---","The University of Texas at El Paso","TexMex","---","---",null,"The University of Texas at El Paso","TexMex","---","---",null,"The University of Texas at El Paso","TexMex","---","---",null,"The University of Texas at El Paso","TexMex","---","---"]
["University of Puerto Rico Mayaguez","SoEast","None","The University of Texas Rio Grande Valley","TexMex","---","---",null,"The University of Texas Rio Grande Valley","TexMex","---","---",null,"The University of Texas Rio Grande Valley","TexMex","---","---","The University of Texas Rio Grande Valley","TexMex","---","---",null,"The University of Texas Rio Grande Valley","TexMex","---","---",null,"The University of Texas Rio Grande Valley","TexMex","---","---",null,"The University of Texas Rio Grande Valley","TexMex","---","---"]
["University of Tennessee Knoxville","SoEast","None","Universidad La Salle A.C.","TexMex","---","---",null,"Universidad La Salle A.C.","TexMex","---","---",null,"Universidad La Salle A.C.","TexMex","---","---","Universidad La Salle A.C.","TexMex","---","---",null,"Universidad La Salle A.C.","TexMex","---","---",null,"Universidad La Salle A.C.","TexMex","---","---",null,"Universidad La Salle A.C.","TexMex","---","---"]
["Vanderbilt University","SoEast","None","Universidad Nacional Autonoma de Mexico (UNAM)","TexMex","---","---",null,"Universidad Nacional Autonoma de Mexico (UNAM)","TexMex","---","---",null,"Universidad Nacional Autonoma de Mexico (UNAM)","TexMex","---","---","Universidad Nacional Autonoma de Mexico (UNAM)","TexMex","---","---",null,"Universidad Nacional Autonoma de Mexico (UNAM)","TexMex","---","---",null,"Universidad Nacional Autonoma de Mexico (UNAM)","TexMex","---","---",null,"Universidad Nacional Autonoma de Mexico (UNAM)","TexMex","---","---"]
["Texas Tech University","TexMex","None","University of Houston","TexMex","---","---",null,"University of Houston","TexMex","---","---",null,"University of Houston","TexMex","---","---","University of Houston","TexMex","---","---",null,"University of Houston","TexMex","---","---",null,"University of Houston","TexMex","---","---",null,"University of Houston","TexMex","---","---"]
["The University of Texas at Austin","TexMex","None","West Texas A&M University","TexMex","---","---",null,"West Texas A&M University","TexMex","---","---",null,"West Texas A&M University","TexMex","---","---","West Texas A&M University","TexMex","---","---",null,"West Texas A&M University","TexMex","---","---",null,"West Texas A&M University","TexMex","---","---",null,"West Texas A&M University","TexMex","---","---"]
["The University of Texas at San Antonio","TexMex","None","Clarkson University","UpNY","---","---",null,"Clarkson University","UpNY","---","---",null,"Clarkson University","UpNY","---","---","Clarkson University","UpNY","---","---",null,"Clarkson University","UpNY","---","---",null,"Clarkson University","UpNY","---","---",null,"Clarkson University","UpNY","---","---"]
["The University of Texas at Tyler","TexMex","None","Cornell University","UpNY","---","---",null,"Cornell University","UpNY","---","---",null,"Cornell University","UpNY","---","---","Cornell University","UpNY","---","---",null,"Cornell University","UpNY","---","---",null,"Cornell University","UpNY","---","---",null,"Cornell University","UpNY","---","---"]
["Universidad Autonoma Del Estado De Mexico (UAEM)","TexMex","None","E'cole Polytechnique Montreal","UpNY","---","---",null,"E'cole Polytechnique Montreal","UpNY","---","---",null,"E'cole Polytechnique Montreal","UpNY","---","---","E'cole Polytechnique Montreal","UpNY","---","---",null,"E'cole Polytechnique Montreal","UpNY","---","---",null,"E'cole Polytechnique Montreal","UpNY","---","---",null,"E'cole Polytechnique Montreal","UpNY","---","---"]
["Universidad Panamericana","TexMex","None","Rensselaer Polytechnic Institute","UpNY","---","---",null,"Rensselaer Polytechnic Institute","UpNY","---","---",null,"Rensselaer Polytechnic Institute","UpNY","---","---","Rensselaer Polytechnic Institute","UpNY","---","---",null,"Rensselaer Polytechnic Institute","UpNY","---","---",null,"Rensselaer Polytechnic Institute","UpNY","---","---",null,"Rensselaer Polytechnic Institute","UpNY","---","---"]
["E'cole d Technologie Superieure","UpNY","None","SUNY Polytechnic","UpNY","---","---",null,"SUNY Polytechnic","UpNY","---","---",null,"SUNY Polytechnic","UpNY","---","---","SUNY Polytechnic","UpNY","---","---",null,"SUNY Polytechnic","UpNY","---","---",null,"SUNY Polytechnic","UpNY","---","---",null,"SUNY Polytechnic","UpNY","---","---"]
["Hudson Valley Community College","UpNY","None","Syracuse University","UpNY","---","---",null,"Syracuse University","UpNY","---","---",null,"Syracuse University","UpNY","---","---","Syracuse University","UpNY","---","---",null,"Syracuse University","UpNY","---","---",null,"Syracuse University","UpNY","---","---",null,"Syracuse University","UpNY","---","---"]
["Rochester Institiute of Technology","UpNY","None","University of Buffalo","UpNY","---","---",null,"University of Buffalo","UpNY","---","---",null,"University of Buffalo","UpNY","---","---","University of Buffalo","UpNY","---","---",null,"University of Buffalo","UpNY","---","---",null,"University of Buffalo","UpNY","---","---",null,"University of Buffalo","UpNY","---","---"]
["SUNY Canton","UpNY","None","Howard University","Virg","---","---",null,"Howard University","Virg","---","---",null,"Howard University","Virg","---","---","Howard University","Virg","---","---",null,"Howard University","Virg","---","---",null,"Howard University","Virg","---","---",null,"Howard University","Virg","---","---"]
["University of Waterloo","UpNY","None","Old Dominion University","Virg","---","---",null,"Old Dominion University","Virg","---","---",null,"Old Dominion University","Virg","---","---","Old Dominion University","Virg","---","---",null,"Old Dominion University","Virg","---","---",null,"Old Dominion University","Virg","---","---",null,"Old Dominion University","Virg","---","---"]
["USMA Westpoint","UpNY","None","The Catholic University of America","Virg","---","---",null,"The Catholic University of America","Virg","---","---",null,"The Catholic University of America","Virg","---","---","The Catholic University of America","Virg","---","---",null,"The Catholic University of America","Virg","---","---",null,"The Catholic University of America","Virg","---","---",null,"The Catholic University of America","Virg","---","---"]
["Bluefield State College","Virg","None","The George Washington University","Virg","---","---",null,"The George Washington University","Virg","---","---",null,"The George Washington University","Virg","---","---","The George Washington University","Virg","---","---",null,"The George Washington University","Virg","---","---",null,"The George Washington University","Virg","---","---",null,"The George Washington University","Virg","---","---"]
["George Mason University","Virg","None","University of the District of Columbia","Virg","---","---",null,"University of the District of Columbia","Virg","---","---",null,"University of the District of Columbia","Virg","---","---","University of the District of Columbia","Virg","---","---",null,"University of the District of Columbia","Virg","---","---",null,"University of the District of Columbia","Virg","---","---",null,"University of the District of Columbia","Virg","---","---"]
["Marshall University","Virg","None","University of Virginia","Virg","---","---",null,"University of Virginia","Virg","---","---",null,"University of Virginia","Virg","---","---","University of Virginia","Virg","---","---",null,"University of Virginia","Virg","---","---",null,"University of Virginia","Virg","---","---",null,"University of Virginia","Virg","---","---"]
["Virginia Tech","Virg","None","Virginia Military Institute","Virg","---","---",null,"Virginia Military Institute","Virg","---","---",null,"Virginia Military Institute","Virg","---","---","Virginia Military Institute","Virg","---","---",null,"Virginia Military Institute","Virg","---","---",null,"Virginia Military Institute","Virg","---","---",null,"Virginia Military Institute","Virg","---","---"]
["West Virginia University","Virg","None","West Virginia University Institute of Technology","Virg","---","---",null,"West Virginia University Institute of Technology","Virg","---","---",null,"West Virginia University Institute of Technology","Virg","---","---","West Virginia University Institute of Technology","Virg","---","---",null,"West Virginia University Institute of Technology","Virg","---","---",null,"West Virginia University Institute of Technology","Virg","---","---",null,"West Virginia University Institute of Technology","Virg","---","---"]